{"text_format":"1","workbook":"xlsx","n_sheets":23,"sheets":["Cover Page","Contents","Facility Info","Operational Summary","Perf. Form 1","Energy Form 1","Operational Data","Permit Compliance","Improvements","Public Liasion","CO2 N2O","Residue Quality ","Water","Air (periodic)","Air (CEMS)","HCl","SO2","NOx","TOC","Particulates","CO 0.5hourly","CO 95% 10 min","NH3"],"not_rendered":{"charts":8,"images":3,"macros":1,"external_links":1,"defined_names":23,"comments":0,"pivot_tables":0},"unopened":[],"bounds":{"document_bytes":16777216,"sheet_cells":100000,"rows_first":2000,"rows_last":500,"rows_between":2000,"halvings":0,"cell_chars":16384,"cell_head_chars":4096},"cells_cut":0,"cells_raw":0,"read":"whole","date_system":"1900"}

{"sheet":"Cover Page","index":0,"n_rows":53,"n_cols":14,"rows_kept":53,"cut":false,"hidden":false,"merged":[[48,6,48,8],[52,2,52,3],[36,1,36,8],[40,2,40,8],[42,2,42,4],[44,2,44,4],[46,6,46,8],[46,2,46,4],[48,2,48,4],[13,13,18,15],[34,1,34,8],[0,3,5,6],[7,1,23,8],[28,1,28,8],[30,1,30,8],[32,1,32,8]]}
[null,null,null,"Add company logo"]
[null,null,null,null,null,null,null,null,null,null,null,null,null,"Version 22.2"]
[]
[]
[]
[]
[]
[null,"Add photo"]
[]
[]
[]
[]
[null,null,null,null,null,null,null,null,null,null,null,null,null,"Notes:"]
[null,null,null,null,null,null,null,null,null,null,null,null,null,"This template may require adjustments by individual operators to meet specific reporting requirements as defined in the site Permit(s)"]
[]
[]
[]
[]
[]
[]
[]
[]
[]
[]
[]
[]
[]
[]
[null,"Annual Performance Report 2022"]
[]
[null,"Permit EPR/JP3135DK"]
[]
[null,"Kemsley Generating Station"]
[]
[null,"K3 CHP"]
[]
[null,"enfinium K3 CHP Operations Limited"]
[]
[null,"Year:",2022]
[]
[null,"Address:","Barge Way, Sittingbourne, Kent, ME10 2FP"]
[]
[null,"Tel: ","01795 685 740"]
[]
[null,"Email: ","fiona.gormley@enfinium.co.uk"]
[]
[null,"Prepared by:","Fiona Gormley",null,null,"Position:","SHEQ Coordinator"]
[]
[null,"Approved by:","Jonathan Farebrother",null,null,"Position:","Plant Manager"]
[]
[null,"Version:",1]
[]
[null,"Issue Date:","2023-01-26"]

{"sheet":"Contents","index":1,"n_rows":45,"n_cols":11,"rows_kept":45,"cut":false,"hidden":false,"merged":[[44,0,47,9],[37,1,37,6],[38,1,38,6],[39,1,39,6],[40,1,40,6],[41,1,41,6],[42,1,42,6],[36,1,36,6],[22,1,22,6],[23,1,23,6],[24,1,24,6],[27,1,27,6],[28,1,28,6],[29,1,29,6],[30,1,30,6],[31,1,31,6],[32,1,32,6],[35,1,35,6],[21,1,21,6],[9,1,9,6],[10,1,10,6],[11,1,11,6],[12,1,12,6],[14,1,14,6],[15,1,15,6],[16,1,16,6],[17,1,17,6],[18,1,18,6],[19,1,19,6],[20,1,20,6],[13,1,13,6],[4,10,7,14],[8,1,8,6],[3,1,3,6],[4,1,4,6],[5,1,5,6],[6,1,6,6],[7,1,7,6]]}
[{"$f":"+'Cover Page'!$B$29","v":"Annual Performance Report 2022"},null,null,null,{"$f":"+'Cover Page'!$B$33","v":"Kemsley Generating Station"}]
[]
["Contents",null,null,null,null,null,null,null,null,null,"Notes:"]
["Section","Subject",null,null,null,null,null,"Page ",null,null,"Section references and Page nos. to be inserted"]
[1,"Facility Information",null,null,null,null,null,3,null,null,"Sections and Subjects may require adjustment by individual operators to meet specific reporting requirements as defined in the sites Permit(s)"]
[2,"Operational Summary",null,null,null,null,null,4]
[3,"Operational Data",null,null,null,null,null,5]
[4,"Performance Form 1",null,null,null,null,null,6]
[5,"Energy Form 1",null,null,null,null,null,7]
[6,"Permit Compliance",null,null,null,null,null,8]
[7,"Improvements",null,null,null,null,null,9]
[8,"Public Liasion",null,null,null,null,null,10]
[9,"Residue Quality - Optional",null,null,null,null,null,11]
[10,"Carbon Dioxide Emissions",null,null,null,null,null,12]
[11,"Emissions to Water",null,null,null,null,null,13]
[12,"Emissions to Air (periodically monitored)",null,null,null,null,null,14]
[13,"Emissions to Air (continuously monitored)",null,null,null,null,null,15]
[14,"Hydrogen Chloride emissions",null,null,null,null,null,16]
[15,"Sulphur Dioxdie emsissions",null,null,null,null,null,17]
[16,"Oxides of Notrigen emissions",null,null,null,null,null,18]
[17,"Total Organic Carbon emissions",null,null,null,null,null,19]
[18,"Particulate Matter emissions",null,null,null,null,null,20]
[19,"Carbon Monoxide emissions",null,null,null,null,null,21]
[20,"Ammonia emissions",null,null,null,null,null,22]
[]
[]
["Version Control"]
["Section","Information",null,null,null,null,null,"Date"]
["All","Final Report Version 1",null,null,null,null,null,"2023-01-26"]
[]
[]
[]
[]
[]
["Distribution"]
["Copy","Name, Role",null,null,null,null,null,"No."]
[null,"InstallationsKSLES@environment-agency.gov.uk - Regulator (EA)"]
[null,"Jonathan.Farebrother@enfinium.co.uk - Plant Manager"]
[null,"Fiona.Gormley@enfinium.co.uk - SHEQ Coordinator (Acting Environmental Manager)"]
[null,"Stewart.Davies@enfinium.co.uk - Senior Environment & Sustainability Advisor"]
[]
[]
[]
[]
["This report is required under the Industrial Emissions Directive’s Article 55(2) requirements on reporting and public information on waste incineration plants and co-incineration plants, which require the operator to produce an annual report on the functioning and monitoring of the plant and make it available to the public. "]

{"sheet":"Facility Info","index":2,"n_rows":20,"n_cols":11,"rows_kept":20,"cut":false,"hidden":false,"merged":[[3,0,16,8],[19,0,51,8],[3,10,12,13],[19,10,28,13]]}
[{"$f":"+'Cover Page'!$B$29","v":"Annual Performance Report 2022"},null,null,null,{"$f":"+'Cover Page'!$B$33","v":"Kemsley Generating Station"}]
[" "]
["Plant Description and Design",null,null,null,null,null,null,null,null,null,"Notes:"]
["The Kemsley Energy Recovery Facility (ERF) forms part of the Kemsley Paper Mill installation comprising of the DS Smith Kemsley Paper Mill and the E.On combined heat and power facility. It is located at grid reference 592170,166640 to the east of Kemsley, 3 km north of Sittingbourne and 2.5 km south east of Iwade.\n\nThe installation consists of two combustion lines and processes up to 657,000 tonnes of residual waste per annum (tpa); primarily commercial and industrial (C&I) waste and residual Municipal Solid Waste (MSW) which is collected and delivered by external private waste management companies.  \n\nEnergy is recovered in the process by utalising the steam generated in the boiler to drive a turbine to generate electricity. Approximately 45MW of electricity can be exported to grid per hour and 55MWth per hour of steam can be supplied to neighbouring businesses (the paper mill when it is running at capacity). Recycable materials in the form of incinerator bottom ash (IBA) and metals from the IBA are also recobvered from the process. \n\nThe existing permit (Permit number EPR/JP3135DK) allows the facility to accept municipal, industrial and commercial waste and undertake the following activities:\n•\tReceipt and storage of waste pending processing;\n•\tElectricity and steam generation; and\n•\tDisposal of waste arising (incinerator bottom ash (IBA) and air pollution control residues (APCR).",null,null,null,null,null,null,null,null,null,"Include summary of plant design, design capacity, no. of combustion lines, electrical and heat capacity and any other general information that descibes the facility, its location and purpose "]
[]
[]
[]
[]
[]
[]
[]
[]
[]
[]
[]
[]
[]
[]
["Summary of Operational Processes and Procedures"]
["Municipal solid wastes and commercial wastes accepted at the installation are delivered in covered vehicles or containers. All vehicles delivering the waste are weighed in at the weighbridge before entering the Tipping Hall and being allowed to discharge waste.\n\nThe residual waste is discharged onto the tipping hall floor and pushed into the bunker using mobile and is utilised as feedstock for the ERF. The waste in the bunker is mixed with a crane to create a homogenous feedstock and to prevent anaerobic conditions and hence odour.\n\nWaste is loaded into the incinerator, using the crane, via the feed hopper. The facility processes waste using air cooled, moving grate technology. The grate is split into 5 zones; zone 1 is the drying zone; 2-3 are the main combustion zones and 4-5 are the burn out zones. Primary and secondary air supply is controlled to ensure good combustion conditions, additional support in combustion is provided through tertiary air injection. A temperature of at least 850°C for at least 2 seconds (T2S) is achieved.\n\nAfter the waste has been burned the remaining unburnt material, called incinerator bottom ash (IBA) is quenched in water. The bottom ash is transported by conveyor to an indoor storage area. The IBA is stored here until it is sent off site to a suitably licensed waste treatment facility for re-processing/recovery.\n\nThe flue gas is treated within the dry Flue Gas Treatment (FGT) system to reduce the level of pollutants emitted and to comply with the requirements of the Industrial Emissions Directive (IED) and the Environmental Permit. Oxides of Nitrogen (NOx) are abated using dry urea; acid gases such as Hydrogen Chloride (HCl) and Sulphur Dioxins (SO2) are abated using hydrated lime injection. For dioxins and mercury, Powdered Activated Carbon (PAC) abatement is used. Fabric bag filters are utilised for the abatement of particulate matter and also to collect the by-products from both reactions known as Air Pollution Control Residue (APCR) which is transferred to a silo then to a tanker (or sealed bags are sometimes used) for removal from the facility and disposal at a suitably licenced premises. \n\nFollowing clean up, the flue gas is emitted to air through the 90m high stack. The flue gases entering the stack are continuously monitored for HCl, SO2, TOC, CO, NOx, NH3 and Particulates against limits as laid down in the Environmental Permit.\n\nThe heat from the combustion process is used to turn water into high-pressure steam, that steam then powers a turbine to generate electricity for internal use and for export to the National Grid. The facility also has combined heat and power (CHP) capability and supplies the adjacent DS Smith paper mill with steam. Spent steam from the turbine is converted back to condensate in an air-cooled condenser, which feeds back into the condensate tank. The facility is designed to export approximately 45MW of electricity to the grid, and 55 MWth of steam to the paper mill when it is running at capacity.\n\nThe facility is certified to ISO 45001, 9001 and 14001 and operates an accredited Management System housing the processes and procedures to be followed. The facility has procedures in place including emergency procedures, operating instructions, method statements and risk assessments. All health, safety and environmental incidents, events and resulting investigations and actions are managed within the companies EHS reporting system.\n\nThe facility has a Computer Maintenance Management System (CMMS) in place housing all maintenance tasks and defect reporting. Planned outages take place at specified intervals to allow for boiler cleaning, statutory and essential maintenance to maintain plant reliability and efficiency.",null,null,null,null,null,null,null,null,null,"Include summary of key processes and procedures such as (but not limited to); waste reception, control rooms, grate, bed and boiler, energy & heat  generation, cooling systems, residue management, emission controls, health and safety systems, maintenance"]

{"sheet":"Operational Summary","index":3,"n_rows":29,"n_cols":11,"rows_kept":29,"cut":false,"hidden":false,"merged":[[2,0,2,8],[3,0,25,8],[28,0,49,8],[3,10,12,13],[28,10,37,13],[27,0,27,8]]}
[{"$f":"+'Cover Page'!$B$29","v":"Annual Performance Report 2022"},null,null,null,{"$f":"+'Cover Page'!$B$33","v":"Kemsley Generating Station"}]
[]
["Summary of Plant Operations and Maintenance during the reporting year",null,null,null,null,null,null,null,null,null,"Notes:"]
["The plant availability for 2022 was comparable with 2021 with slightly increased turbine availability. There was an increase in thermal energy produced delivering more steam energy to D.S. Smith. A reduction in the calorific value of the waste was observed in the second half of the year resulted in an increased throughput compared to 2021. The facility continues to maintain safe and environmentally compliant operations in accordance with the management system and legal requirements.\n\nDetailed PPM (planned preventative maintenance) processes, in line with equipment manufacturers recommendations, are in place and managed within the companies CMMS (Computerised Maintenance management System).\n\nThree planned maintenance outages were completed successfully and on schedule in 2022. In addition to the routine maintenance tasks and statutory inspections, 170m2 of boiler tubes were exchanged and coated to aid in the reduction of unplanned downtime due to tube leaks and improve plant availability. \n\nLegacy defects continue to be managed from the construction phase.",null,null,null,null,null,null,null,null,null,"Include summary of key operational and/or mainteanance activity undertaken in the year, such as any major component upgrades and/or replacements "]
[]
[]
[]
[]
[]
[]
[]
[]
[]
[]
[]
[]
[]
[]
[]
[]
[]
[]
[]
[]
[]
[]
[]
["Summary of Residue Handling for the reporting year"]
["The residues produced from the incineration process include Incinerator Bottom Ash (IBA) and Air Pollution Control Residues (APCR). The facility has procedures in place as part of the management system for the handling of such residues.\n\nThe IBA is sampled and sent to an approved testing laboratory twice a month and for a full hazard analysis once per quarter in accordance with the Environmental Permit. All hazard analysis results have demonstrated the IBA to be non-hazardous. IBA is sent for re-processing at Fortis IBA (Andover), a fully licenced site, where the metals are removed and the IBA is used to produce construction materials.\n\nAPCR is sampled and tested by the same approved laboratory once per quarter. Due to the inevitable hazardous nature of the APCR it is sent to Augean (Peterborough) where it is treated and landfilled. enfinium continue to investigate opportunities for recycling of this material.\n\nAll testing of residues in carried out in accordance with the Industrial Emissions Directive and the ESA sampling and testing protocol.",null,null,null,null,null,null,null,null,null,"Include in here a summary of residue handling regimes and destinations "]

{"sheet":"Perf. Form 1","index":4,"n_rows":56,"n_cols":10,"rows_kept":56,"cut":false,"hidden":false,"merged":[[55,5,55,6],[55,1,55,2],[49,0,49,1],[51,0,51,9],[52,0,53,9],[40,0,40,9],[41,0,42,9],[45,0,45,1],[45,2,45,9],[47,0,47,1],[48,0,48,1],[38,0,38,3],[38,4,38,5],[38,7,38,8],[39,0,39,3],[39,4,39,5],[39,7,39,8],[36,0,36,3],[36,4,36,5],[36,7,36,8],[37,0,37,3],[37,4,37,5],[37,7,37,8],[35,0,35,3],[35,4,35,5],[35,7,35,8],[25,0,25,3],[25,4,25,5],[25,6,25,7],[25,8,25,9],[27,0,27,9],[28,0,30,9],[24,0,24,3],[24,4,24,5],[24,6,24,7],[24,8,24,9],[33,0,33,3],[33,7,33,8],[34,0,34,3],[34,4,34,5],[34,7,34,8],[22,0,22,1],[22,2,22,3],[22,4,22,5],[22,6,22,7],[21,0,21,1],[21,2,21,3],[21,4,21,5],[21,6,21,7],[21,8,21,9],[22,8,22,9],[19,4,19,5],[19,8,19,9],[19,0,19,1],[19,2,19,3],[19,6,19,7],[20,0,20,1],[20,2,20,3],[20,4,20,5],[20,6,20,7],[20,8,20,9],[17,0,17,1],[17,2,17,3],[17,4,17,5],[17,6,17,7],[17,8,17,9],[18,0,18,1],[18,2,18,3],[18,4,18,5],[18,6,18,7],[18,8,18,9],[13,2,13,3],[13,0,13,1],[12,8,12,9],[12,6,12,7],[12,4,12,5],[12,2,12,3],[12,0,12,1],[16,0,16,9],[14,0,14,3],[14,4,14,5],[14,6,14,7],[14,8,14,9],[2,0,2,4],[3,1,3,4],[5,3,5,4],[5,6,5,7],[8,0,8,1],[8,2,8,3],[8,4,8,5],[8,6,8,7],[8,8,8,9],[23,0,23,1],[23,2,23,3],[23,4,23,5],[23,6,23,7],[23,8,23,9],[9,0,9,9],[10,0,10,1],[10,2,10,3],[10,4,10,5],[10,6,10,7],[10,8,10,9],[11,0,11,1],[11,2,11,3],[11,4,11,5],[11,6,11,7],[11,8,11,9],[15,0,15,1],[15,2,15,3],[15,4,15,5],[15,6,15,7],[15,8,15,9],[13,8,13,9],[13,6,13,7],[13,4,13,5]]}
[{"$f":"+'Cover Page'!C39","v":2022}," Annual Reporting Performance Form 1"]
[]
[{"$f":"+'Cover Page'!B31","v":"Permit EPR/JP3135DK"},null,null,null,null,"Operator: ","enfinium K3 CHP Operations Limited"]
["Facility:",{"$f":"+'Cover Page'!B33:I33","v":"Kemsley Generating Station"},null,null,null,"Form:","Performance 1"]
[]
["Reporting  Period from: ",null,null,"01st Jan 2022",null,"to:","31st Dec 2022"]
[]
[{"$f":"+A1","v":2022},"Annual Reporting of Waste Disposal and Recovery"]
["Waste Description",null,"Disposal Route(s)",null,"Disposal Tonnes",null,"Recovery Tonnes",null,"% / tonne of waste incinerated"]
["1) Hazardous Wastes"]
["APC Residues - 19 01 07*",null,"D09",null,{"$f":"3063.26+4281.34+4101.58+3832.72","v":15278.9},null,0,null,{"$f":"IF((E11+G11)>0,(E11+G11)/'Operational Data'!$G$21, \"-\")","v":2.8182832689274812E-2}]
["IBA",null,"-",null,0,null,0,null,{"$f":"IF((E12+G12)>0,(E12+G12)/'Operational Data'!$G$21, \"-\")","v":"-"}]
["16 01 14 (Antifreeze)",null,"D09",null,7,null,0,null,{"$f":"IF((E13+G13)>0,(E13+G13)/'Operational Data'!$G$21, \"-\")","v":1.2911913084379352E-5}]
["16 10 01 (Aq. Liquid cont. Haz)",null,"D09",null,134,null,0,null,{"$f":"IF((E14+G14)>0,(E14+G14)/'Operational Data'!$G$21, \"-\")","v":2.4717090761526187E-4}]
["Total Hazardous Waste",null,null,null,{"$f":"SUM(E11:F14)","v":15419.9},null,{"$f":"SUM(G11:H14)","v":0},null,{"$f":"IF((E15+G15)>0,(E15+G15)/'Operational Data'!$G$21, \"-\")","v":2.8442915509974451E-2}]
[]
["2) Non-Hazardous Wastes"]
["IBA - 19 01 12",null,"R11",null,0,null,{"$f":"23361.18+33088.96+33624.87+29577","v":119652.01000000001},null,{"$f":"IF((E18+G18)>0,(E18+G18)/'Operational Data'!$G$21, \"-\")","v":0.22070519335589844}]
["19 12 02 (Ferrous Metal)",null,"R04",null,0,null,{"$f":"285.8+179.46+345.46+345.2","v":1155.92},null,{"$f":"IF((E19+G19)>0,(E19+G19)/'Operational Data'!$G$21, \"-\")","v":2.1321626532136832E-3}]
["16 10 02 (Aq. Liquid)",null,"D09",null,{"$f":"1191.3+389.7","v":1581},null,0,null,{"$f":"IF((E20+G20)>0,(E20+G20)/'Operational Data'!$G$21, \"-\")","v":2.9162477980576793E-3}]
["15 01 06 (Mixed Packaging)",null,"R05",null,0,null,{"$f":"0.36+0.68+23.25","v":24.29},null,{"$f":"IF((E21+G21)>0,(E21+G21)/'Operational Data'!$G$21, \"-\")","v":4.4804338402796352E-5}]
["19 12 12 (Other Waste, oversize)",null,"R04",null,0,null,93.08,null,{"$f":"IF((E22+G22)>0,(E22+G22)/'Operational Data'!$G$21, \"-\")","v":1.7169155284200429E-4}]
["20 01 38 (Wood)",null,"R03",null,0,null,{"$f":"1.2+1.22+1.96+1.34","v":5.72},null,{"$f":"IF((E23+G23)>0,(E23+G23)/'Operational Data'!$G$21, \"-\")","v":1.0550877548949984E-5}]
["20 03 01 (Municipal)  ",null,"R01",null,0,null,{"$f":"12.42+11.28+2.86+3.68","v":30.24},null,{"$f":"IF((E24+G24)>0,(E24+G24)/'Operational Data'!$G$21, \"-\")","v":5.5779464524518795E-5}]
["Total Non-Hazardous Waste",null,null,null,{"$f":"SUM(E18:F24)","v":1581},null,{"$f":"SUM(G18:H24)","v":120961.26000000001},null,{"$f":"IF((E25+G25)>0,(E25+G25)/'Operational Data'!$G$21, \"-\")","v":0.2260364300404881}]
["TOTAL WASTE",null,null,null,{"$f":"+E25+E15","v":17000.900000000001},null,{"$f":"+G25+G15","v":120961.26000000001},null,{"$f":"IF((E26+G26)>0,(E26+G26)/'Operational Data'!$G$21, \"-\")","v":0.25447934555046253}]
[]
["Operator’s comments :"]
[]
[]
[]
[]
[{"$f":"+A1","v":2022},"Annual Reporting of Water and Other Raw Material Usage"]
["Raw Material",null,null,null,"Usage",null,"Unit","Specific Usage",null,"Unit"]
["Mains Water",null,null,null,{"$f":"+'Operational Data'!G44","v":12841000},null,"m3",{"$f":"IF(E35>0,E35/'Operational Data'!$G$21,\"-\")","v":23.685982273787893},null,"m3/te"]
["Total Water",null,null,null,{"$f":"+'Operational Data'!G45+'Operational Data'!G44","v":12841000},null,"m3",{"$f":"IF(E36>0,E36/'Operational Data'!$G$21,\"-\")","v":23.685982273787893},null,"m3/te"]
["Urea / Ammonia",null,null,null,{"$f":"+'Operational Data'!G47","v":479743},null,"kg",{"$f":"IF(E37>0,E37/'Operational Data'!$G$21,\"-\")","v":0.88491427411991475},null,"kg/te"]
["Activated Carbon",null,null,null,{"$f":"+'Operational Data'!G48","v":156502},null,"kg",{"$f":"IF(E38>0,E38/'Operational Data'!$G$21,\"-\")","v":0.28867717450450536},null,"kg/te"]
["Lime / hydrated lime / Sodium Bicarb.",null,null,null,{"$f":"+'Operational Data'!G49","v":7478000},null,"kg",{"$f":"IF(E39>0,E39/'Operational Data'!$G$21,\"-\")","v":13.793612292141257},null,"kg/te"]
[]
["Operator’s comments :"]
["-"]
[]
[]
[{"$f":"+A33","v":2022},"Annual Reporting of other performance indicators "]
["Parameter",null,"Results by Line"]
[null,null,"A1","A2","A3","A4","A5",null,"Turbine 1","Turbine 2"]
["Operating hours for the year, hours",null,6973,7551,"-","-","-","-",8301,"-"]
["Number of periods of abnormal operation, qty.",null,0,0,"-","-","-","-",0,"-"]
["Cumulative hours of abnormal operation for this year, hours",null,0,0,"-","-","-","-",0,"-"]
[]
["Operator’s comments :"]
["K3 facility operates 2 lines (2 boilers and 2 emission points) with 1 common turbine. "]
[]
[]
["Signed: ","F. Gormley",null,null,"Date:","2023-01-26"]

{"sheet":"Energy Form 1","index":5,"n_rows":28,"n_cols":7,"rows_kept":28,"cut":false,"hidden":false,"merged":[[27,1,27,2],[27,5,27,6],[14,0,14,2],[14,3,14,4],[14,6,14,8],[16,0,16,8],[17,0,23,8],[12,0,12,2],[12,3,12,4],[12,6,12,8],[13,0,13,2],[13,3,13,4],[13,6,13,8],[10,0,10,2],[10,3,10,4],[10,6,10,8],[11,0,11,2],[11,3,11,4],[11,6,11,8],[8,0,8,2],[8,3,8,4],[8,6,8,8],[9,0,9,2],[9,3,9,4],[9,6,9,8],[3,1,3,4],[5,3,5,4],[5,6,5,7],[7,0,7,2],[7,3,7,4],[7,6,7,8]]}
[{"$f":"+'Cover Page'!C39","v":2022}," Annual Reporting of Energy Usage/Export"]
[]
[{"$f":"+'Cover Page'!B31","v":"Permit EPR/JP3135DK"},null,null,null,null,"Operator: ","enfinium K3 CHP Operations Limited"]
["Facility:",{"$f":"+'Cover Page'!B33:I33","v":"Kemsley Generating Station"},null,null,null,"Form:","Energy 1"]
[]
["Reporting  Period from: ",null,null,{"$f":"+'Perf. Form 1'!D6:E6","v":"01st Jan 2022"},null,"to:",{"$f":"+'Perf. Form 1'!G6:H6","v":"31st Dec 2022"}]
[]
["Energy Source",null,null,"Energy Usage",null,"Unit","Specific Useage (KWh/tonne incinerated"]
["Electricity Produced",null,null,{"$f":"+'Operational Data'!G26","v":389426},null,"MWh",{"$f":"+'Operational Data'!H26","v":718.31923782821627}]
["Electricity Imported   ",null,null,{"$f":"+'Operational Data'!G29","v":770},null,"MWh",{"$f":"+'Operational Data'!H29","v":1.4203104392817287}]
["Electricity Exported",null,null,{"$f":"+'Operational Data'!G27","v":343876},null,"MWh",{"$f":"+'Operational Data'!H27","v":634.29957482914767}]
["Gas Oil",null,null,{"$f":"249.74+122.87+87.44+145.07","v":605.12},null,"tonnes","-"]
["Steam/hot water exported",null,null,{"$f":"+'Operational Data'!G32","v":344078},null,"GWh",{"$f":"+'Operational Data'!H32","v":634.67217574958272}]
[]
[]
[]
["Operator’s comments :"]
["-"]
[]
[]
[]
[]
[]
[]
[]
[]
[]
["Signed: ","F. Gormley",null,null,"Date:","2023-01-26"]

{"sheet":"Operational Data","index":6,"n_rows":63,"n_cols":11,"rows_kept":63,"cut":false,"hidden":false,"merged":[[54,0,55,0],[5,10,6,10],[7,10,18,10],[35,1,40,1],[3,1,3,2],[7,1,19,1],[25,1,28,1],[30,1,31,1],[32,2,32,5]]}
[{"$f":"+'Cover Page'!$B$29","v":"Annual Performance Report 2022"},null,null,null,{"$f":"+'Cover Page'!$B$33","v":"Kemsley Generating Station"}]
[]
["Operational Data",null,null,null,null,null,null,null,null,null,"Notes:"]
["Plant Size",657000,null,"tonnes pa",55,"MWth",45,"MWe",null,null,"^ - RDF to include SRF "]
["No. of combustion lines",2,null,"No. of Turbines:",null,1,null,null,null,null,"^^ - CHP plants only"]
[null,null,null,null,null,null,null,null,null,null,"2020 updates include;  heat in MWh, water in Litres, NCV in MJ/kg"]
["Waste types received","Unit","Q1","Q2","Q3**","Q4","Year Total","%"]
["Household / Local Authority","tonnes",72953.08,86923.73,84856.94,76306.36,{"$f":"SUM(C8:F8)","v":321040.11},{"$f":"IF(G8>0,G8/$G$18,\"-\")","v":0.59163792759020628},null,null,"Availabiity Definition: 'the availability of a line is to be calculated by the number of hours the line reported Continuously Monitored emission levels to the Regulator through the calendar year divided by the total number of hours in that year. \nThe overall plant availability is calculated as the Mean of all lines in the plant. For clarity this includes periods of Other Than Normal Operating Conditions (OTNOC) and abnormal operation.'  \n\nRationale: The primary function of an Energy from Waste facility is the disposal of waste. It follows therefore that the availability of a plant is determined by the period of time a facility spends undertaking this activity."]
["Commercial & Industrial ",null,13562.7,21992.43,{"$f":"20981.56-25.62","v":20955.940000000002},25193.1,{"$f":"SUM(C9:F9)","v":81704.170000000013},0.15057086111227011]
["Hazardous ",null,0,0,0,0,0,"-"]
["Clinical",null,0,0,0,0,0,"-"]
["Waste wood (biomass) ",null,0,0,0,0,0,"-"]
["Refuse Derived Fuel ^ - H'hold/LA",null,0,0,0,0,{"$f":"SUM(C13:F13)","v":0},"-"]
["Refuse Derived Fuel ^^  - C&I",null,20774.32,35924.76,44231.82,38954.18,139885.07999999999,0.25779121129752358]
["Other [Please specify]",null,0,0,0,0,0,"-"]
["Other [Please specify]",null,0,0,0,0]
["Other [Please specify]",null,0,0,0,0]
["Total waste received",null,{"$f":"SUM(C8:C17)","v":107290.1},{"$f":"SUM(D8:D17)","v":144840.92000000001},{"$f":"SUM(E8:E17)","v":150044.70000000001},{"$f":"SUM(F8:F17)","v":140453.63999999998},{"$f":"SUM(G8:G17)","v":542629.36},1]
["Rejected Waste ",null,0,0,0,0,{"$f":"SUM(C19:F19)","v":0},{"$f":"IF(G19>0,G19/$G$18,\"-\")","v":"-"}]
["Unprocessed waste transferred out",null,0,0,0,0,{"$f":"SUM(C20:F20)","v":0},{"$f":"IF(G20>0,G20/$G$18,\"-\")","v":"-"}]
["Total waste combusted*",null,103592,148412,146338,143793,{"$f":"SUM(C21:F21)","v":542135},{"$f":"IF(G21>0,G21/$G$18,\"-\")","v":0.99908895456744173}]
["*Total waste combusted = Total waste processed from midnight readings derived from crane weight data."]
["**25.62tonnes less than reported in Q3 returns due to a duplicate ticket correction"]
[]
["Energy Useage / Export","Unit","Q1","Q2","Q3","Q4","Year Total","KWh/te"]
["Power Generated","MWh",74789,107368,110790,96479,{"$f":"SUM(C26:F26)","v":389426},{"$f":"IF(G26>0,G26*1000/$G$21,\"-\")","v":718.31923782821627}]
["Power Exported",null,66031,94986,97717,85142,{"$f":"SUM(C27:F27)","v":343876},{"$f":"IF(G27>0,G27*1000/$G$21,\"-\")","v":634.29957482914767}]
["Power Used on site",null,{"$f":"C26-C27+C29","v":9218},{"$f":"D26-D27+D29","v":12397},13079,11626,{"$f":"SUM(C28:F28)","v":46320},{"$f":"IF(G28>0,G28*1000/$G$21,\"-\")","v":85.439973438350222}]
["Power Imported",null,460,15,6,289,770,{"$f":"IF(G29>0,G29*1000/$G$21,\"-\")","v":1.4203104392817287}]
["Parasitic Load","%",{"$f":"IF(C26>0,1-C27/(C26+C29),\"-\")","v":0.12249996677696717},{"$f":"IF(D26>0,1-D27/(D26+D29),\"-\")","v":0.11544657906745015},{"$f":"IF(E26>0,1-E27/(E26+E29),\"-\")","v":0.1180457778259143},{"$f":"IF(F26>0,1-F27/(F26+F29),\"-\")","v":0.12014302248677244},{"$f":"IF(G26>0,1-G27/(G26+G29),\"-\")","v":0.11870957159991391},"-"]
["Thermal Energy Produced **","MWh",297007,439623,438805,386349,{"$f":"SUM(C31:F31)","v":1561784},{"$f":"IF(G31>0,G31*1000/$G$21,\"-\")","v":2880.802752082046}]
["Thermal Energy Exported **",null,48298,108537,101432,85811,{"$f":"SUM(C32:F32)","v":344078},{"$f":"IF(G32>0,G32*1000/$G$21,\"-\")","v":634.67217574958272}]
["R1 value (if applicable)",null,0.82,null,null,null,"-","-"]
[]
["Waste Disposal & Recovery","Unit","Q1","Q2","Q3","Q4","Year Total","% inputs"]
["APC Residues - produced","tonnes",3063,4281.34,4082,3797,{"$f":"SUM(C36:F36)","v":15223.34},{"$f":"IF(G36>0,G36/$G$21,\"-\")","v":2.8080348990565079E-2}]
["IBA - produced",null,23361,33088.959999999999,33575,29582,119606.95999999999,{"$f":"IF(G37>0,G37/$G$21,\"-\")","v":0.22062209597240537}]
["Metals recycling",null,285.8,179.46,345.46,345.2,{"$f":"SUM(C38:F38)","v":1155.92},2.1321626532136832E-3]
["Other",null,0,0,0,0,{"$f":"SUM(C39:F39)","v":0},"-"]
["Other",null,0,0,0,0,0,"-"]
["Other",null,0,0,0,0,0,"-"]
[]
["Raw Material Usage","Unit","Q1","Q2","Q3","Q4","Year Total","kg or Ltr /te"]
["Mains Water","ltrs",2204000,3200000,4342000,3095000,{"$f":"SUM(C44:F44)","v":12841000},{"$f":"IF(G44>0,G44/$G$21,\"-\")","v":23.685982273787893}]
["Other Water","ltrs",0,0,0,null,0,{"$f":"IF(G45>0,G45/$G$21,\"-\")","v":"-"}]
["Ammonia","kgs",0,0,0,null,0,"-"]
["Urea","kgs",92610,133170,136290,117673,{"$f":"SUM(C47:F47)","v":479743},0.88491427411991475]
["Activated Carbon","kgs",30672,43302,42153,40375,156502,0.28867717450450536]
["Lime / hydrated lime","kgs",1464000,2208000,2101000,1705000,7478000,13.793612292141257]
["Fuel oil","ltrs",304563,149844,106639,176693,737739,1.3608031209938485]
["Gas","cf",0,0,0,0,0]
["Other",null,0,0,0,0,0]
[]
["Summary ","Line/Unit","Q1","Q2","Q3","Q4","Year Total",null,null,"Hrs in year "]
["Availability of waste combustion by line, hrs",1,1393,2006.58,1980,1982,{"$f":"SUM(C55:F55)","v":7361.58},"-",null,8760]
[null,2,1549,2175.1799999999998,2119,1708,7551.18,"-"]
["Overall Availability, mean avg. of all lines, hrs, hrs","-",{"$f":"AVERAGE(C55:C56)","v":1471},{"$f":"AVERAGE(D55:D56)","v":2090.88},2049.5,1845,{"$f":"AVERAGE(G55:G56)","v":7456.38},0.85099999999999998]
["Hours of turbine operations, hrs",1,1857,2179,2207,2058,{"$f":"SUM(C58:F58)","v":8301},0.94799999999999995]
["Hours of heat / steam export","-","-","-","-","-",8033,"-"]
["Net Calorific Value of waste*","MJ/kg",10620,10820,10743,9768,10370,"-","*Average per quarter and year total NCV "]
["Abnormal Events","qty.",0,0,0,0,0,{"$f":"IF(G61>0,\"yes\",\"no\")","v":"no"}]
["Abnormal operation","hours",0,0,0,0,0,{"$f":"+(G62)/J55","v":0}]
["Permit Breaches","qty.",0,1,0,0,1,{"$f":"IF(G63>0,\"yes\",\"no\")","v":"yes"}]

{"sheet":"Permit Compliance","index":7,"n_rows":33,"n_cols":12,"rows_kept":33,"cut":false,"hidden":false,"merged":[[27,0,27,9],[25,0,25,10],[17,0,17,10],[30,1,30,3],[30,4,30,6],[30,7,30,9],[26,1,26,3],[26,4,26,6],[26,7,26,9],[22,1,22,3],[22,4,22,6],[22,7,22,9],[23,1,23,3],[23,4,23,6],[23,7,23,9],[20,1,20,3],[31,1,31,3],[31,4,31,6],[31,7,31,9],[28,1,28,3],[28,4,28,6],[28,7,28,9],[29,1,29,3],[29,4,29,6],[29,7,29,9],[20,4,20,6],[20,7,20,9],[21,1,21,3],[21,4,21,6],[21,7,21,9],[18,1,18,3],[18,4,18,6],[18,7,18,9],[19,1,19,3],[19,4,19,6],[19,7,19,9],[15,2,15,4],[15,5,15,8],[14,2,14,4],[14,5,14,8],[15,0,15,1],[12,5,12,8],[13,0,13,1],[13,2,13,4],[13,5,13,8],[14,0,14,1],[6,0,6,1],[6,2,6,8],[7,0,7,1],[7,2,7,4],[7,5,7,8],[7,11,16,14],[32,4,32,8],[8,0,8,1],[8,2,8,4],[8,5,8,8],[9,0,9,1],[9,2,9,4],[9,5,9,8],[10,0,10,1],[10,2,10,4],[10,5,10,8],[11,0,11,1],[11,2,11,4],[11,5,11,8],[12,0,12,1],[12,2,12,4]]}
[{"$f":"+'Cover Page'!$B$29","v":"Annual Performance Report 2022"},null,null,null,{"$f":"+'Cover Page'!$B$33","v":"Kemsley Generating Station"}]
[]
["Summary of Permit Compliance"]
["Compliance with permit limits for continuously monitored pollutants"]
[]
["The plant met its emission limits as shown in the table below:"]
["Substance",null,"Percentage time compliant during operation",null,null,null,null,null,null,null,null,"Notes:"]
[null,null,"Half-hourly limit",null,null,"Daily limit",null,null,null,null,null,"Report to 2 decimal places, i.e. xx.xx%\n\nPlease provide a brief summary of each notification or non-compliance in the table (rather than just referring to notifications that were sent to the Regulator).  \n\n"]
["Particulates",null,1,null,null,1]
["Oxides of nitrogen",null,1,null,null,1]
["Sulphur dioxide",null,1,null,null,1]
["Carbon monoxide",null,"100% 95% of 10-min averages",null,null,1]
["Total organic carbon",null,1,null,null,1]
["Hydrogen chloride",null,1,null,null,1]
["Hydrogen fluoride",null,1,null,null,1]
["Overall",null,1,null,null,1]
[]
["Summary of any notifications or non-compliances under the permit"]
["Date","Summary of notification or non-compliance [including Line/Reference]",null,null,"Reason ",null,null,"Measures taken to prevent reoccurrence"]
["09.02.2022","Schedual 5 (a) notification for steam release to atmosphe from expansion flaps.",null,null,"A tube leak on Line 1 led to an increase in boiler pressure tripping the boiler. As a result of the increase in chamber pressure two of the expansion flaps on the boiler roof opened to relieve the pressure, releasing steam to atmosphere.",null,null,"The root cause was the tube leak which is an unplanned, emergency event. The expansion flaps reales by design as an an emergency safety feature in order to reduce chamber pressure. In this instance the release could not be prevented without compromising safety."]
["11.05.22","Schedual 5 (b) notification for exceedance of the ELV for Dioxins.",null,null,"During the round of monitoring on 1 April 2022, Dioxins and Furans exceeded the emission limit value, no conclusive reason for the elevated concentration could be identified by enfinium or the testing laboratory. All other required parameters were monitored in April and were below the emissions limit values (ELVs) specified in the permit.",null,null,"The result was an anomoly for the facility with no similarly elevated concentrations during any previous monitoring campaigns being recorded. A retest was conducted demonstrating normal dioxin levels for the facility below the ELV."]
["16.09.22","Schedual 5 (a) notification for steam release to atmosphe from expansion flaps.",null,null,"A tube leak on Line 1 led to an increase in boiler pressure tripping the boiler. As a result of the increase in chamber pressure two of the expansion flaps on the boiler roof opened to relieve the pressure, releasing steam to atmosphere.",null,null,"The root cause was the tube leak which is an unplanned, emergency event. The expansion flaps reales by design as an an emergency safety feature in order to reduce chamber pressure. In this instance the release could not be prevented without compromising safety."]
["10.10.22","Schedual 5 (a) notification for steam release to atmosphe from expansion flaps.",null,null,"Pressurised containers in the system from the waste resulted in a sudden increase in boiler pressure causing one (of three) installed expansion flaps on the boiler roof to open (emergency safety feature) to relieve the pressure.",null,null,"Fuel suppliers alerted with a stern message and reminded of what constitutes unacceptable waste. Incoming waste closely monitored with increased waste inspections. Staff will be to increase awareness of retrieving pressurised containers from the waste before they enter the system.   \nThe opening of the expansion flaps is an emergency safety feature and hence the opening of these cannot be predicted or fully prevented in the future."]
["22.12.2022","Schedual 5 (a) notification for steam release to atmosphe from expansion flaps.",null,null,"A tube leak on Line 1 led to an increase in boiler pressure tripping the boiler. As a result of the increase in chamber pressure two of the expansion flaps on the boiler roof opened to relieve the pressure, releasing steam to atmosphere.",null,null,"The root cause was the tube leak which is an unplanned, emergency event. The expansion flaps reales by design as an an emergency safety feature in order to reduce chamber pressure. In this instance the release could not be prevented without compromising safety."]
[]
["Summary of any complaints received and actions to taken to resolve them."]
["Date","Summary of complaint [including Line/Reference]",null,null,"Reason *",null,null,"Measures taken to prevent reoccurrence"]
["No complaits received in 2022"]
[]
[]
[]
[]
[null,null,null,null,"* including whether substantiated by the operator or the EA"]

{"sheet":"Improvements","index":8,"n_rows":39,"n_cols":5,"rows_kept":39,"cut":false,"hidden":false,"merged":[[37,0,37,8],[38,0,47,8],[4,0,4,8],[5,0,13,8],[15,0,15,8],[16,0,24,8],[26,0,26,8],[27,0,35,8]]}
[{"$f":"+'Cover Page'!$B$29","v":"Annual Performance Report 2022"},null,null,null,{"$f":"+'Cover Page'!$B$33","v":"Kemsley Generating Station"}]
[]
["Summary of Plant Improvements"]
[]
["Summary of any efficiency improvements that have been completed within the year."]
["Modifications have been made to the ash discharging system allowing for the safe clearing of blockages without the need to interrupt boiler operations. The resulting benefit of the modifications is reduced downtime, lower diesel oil consumption and improved efficiency in running the plant.\n\nDuring the planned outages a programme of Inconel coating application to boiler tubes has been carried out. This coating increases the resistance to corrosion and reducing downtime caused by tubes leaks. This in turn increases the availability of the plant with less downtime and re-heating of the plant meaning more efficient operations. \n\nThe Kemsley facility continues to operate with an approved R1 Status.\n\n"]
[]
[]
[]
[]
[]
[]
[]
[]
[]
["Summary of any permit improvement conditions that have been completed within the year and the resulting environmental benefits."]
["Summary the IC status:\n- IC1 - Environmental Management System - Submitted 15/07/2021, Discharged 22/07/2021.  \n- IC2 - Commissioning Report - Submitted 04/01/2021, Discharged 02/11/2021.\n- IC3 - Performance and Optimisation of the SNCR System - Submitted 21/12/2021, EA requested further            information and it has been agreed this will be submitted as part of IC8 within the new permit.\n- IC4 - Air dispersion Modeling - Submitted 08/10/2021, Awaiting response from EA.\n- IC5 - T2S (Residence Time) Testing Report - Submittted 04/12/2020, Discharged 06/08/2021.\n- IC6 - Review of Energy Efficiency Measures - Submitted 25/08/2021, Awaiting EA Response. \n- IC7 - Incineration of Sludges - Submitted 25/08/2021, Discharged 31/10/2022.\nThese submissions provide evidence that the plant has been installed and operated as per design/ permit requirements.\n"]
[]
[]
[]
[]
[]
[]
[]
[]
[]
["Summary of any changes to the plant or operating techniques which required a variation to the permit and a summary of the resulting environmental impact."]
["No changes to plant or operating techniques requiring a variation application in 2022."]
[]
[]
[]
[]
[]
[]
[]
[]
[]
["Summary of any other improvements made to the plant or planned to be made and a summary of the resulting environmental benefits."]
["A second standby Continuous Emissions Measurement System (CEMS) has been installed meaning the facility now has four CEMS, a duty and a standby on each line enabling 100% redundancy. This will provide full coverage ensuring no data is lost during malfunction of duty CEMS on either combustion lines. \n\nAll required testing and trails in accordance with the BREF and new permit is underway and on track for completion by the set dates."]

{"sheet":"Public Liasion","index":9,"n_rows":19,"n_cols":5,"rows_kept":19,"cut":false,"hidden":false,"merged":[[4,0,4,8],[18,0,18,8],[13,0,14,1],[13,2,14,8],[15,0,16,1],[15,2,16,8],[12,0,12,1],[12,2,12,8],[5,0,5,1],[5,2,5,8],[6,0,7,1],[6,2,7,8],[8,0,9,1],[8,2,9,8],[11,0,11,8]]}
[{"$f":"+'Cover Page'!$B$29","v":"Annual Performance Report 2022"},null,null,null,{"$f":"+'Cover Page'!$B$33","v":"Kemsley Generating Station"}]
[]
["Details of Public & Stakeholder Liaison"]
[]
["Summary of events held during the reporting year."]
["Date",null,"Description"]
["Monthly",null,"Project meeting with local businesses (including DS Smith, E.On, FGS, MVV, McLaren Dalcour, Swale Local Council, Kent Council, Sea Terminals Ridham and other local businesses)."]
[]
["Quarterly ",null,"Environmental meeting with DS Smith and E.On."]
[]
[]
["List of events planned for next year"]
["Date",null,"Description"]
["Monthly",null,"Project meeting with local businesses (including DS Smith, E.On, FGS, MVV, McLaren Dalcour, Swale Local Council, Kent Council, Sea Terminals Ridham and other local businesses)."]
[]
["Quarterly ",null,"Environmental meeting with DS Smith and E.On."]
[]
[]
["If you wish to be involved in the public liaison programme, please contact: enfinium Kemsley (01795 685 740)"]

{"sheet":"CO2 N2O","index":10,"n_rows":22,"n_cols":5,"rows_kept":22,"cut":false,"hidden":false,"merged":[[22,0,23,2],[4,0,4,2],[8,1,8,2],[8,4,8,14],[10,0,10,2],[12,1,12,2],[12,4,12,14],[15,0,15,2],[17,1,17,2],[17,4,17,14],[19,1,19,2],[19,4,19,14]]}
[{"$f":"+'[1]Cover Page'!$B$29","v":"Annual Performance Report 2022"},null,{"$f":"+'[1]Cover Page'!$B$33","v":0}]
[]
["Carbon dioxide emissions and biogenic content of waste inputs",null,null,null,"Notes:"]
[]
["Carbon dioxide emissions (all types of plant)"]
["Annual mass of carbon dioxide released","566,353 tonnes "]
["Annual mass of carbon dioxide released per tonne of waste burned","1.04 tonnes "]
["Annual mass of carbon dioxide released per MWh of energy exported","0.84 tonnes "]
["Description of how annual carbon dioxide mass emission has been calculated","Mesured using calibrated CEMS",null,null,"Note 1: Where available, data from CO2 CEMS should be used. Otherwise, where no CEMS data is available, a suitable emissions factor should be used based on the tonnage of waste burned e.g.0.992 tCO2/t waste as per Tolvik report 2021, or other justified emissions factor  - refer to embedded Environment Agency guidance note above or updated version for suitable descriptive text."]
[]
["Nitrous oxide emissions (only plants which use ammonia or urea to abate NOx emissions)"]
["Annual mass emissions of nitrous oxide","34.27 tonnes "]
["Description of how annual nitrous oxide mass emission has been calculated","Mesured using calibrated CEMS",null,null,"Note 2: Where available, data from N2O CEMS should be used, or if no CEMS data is available, from periodic monitoring. Otherwise, a suitable emissions factor should be used based on the tonnage of waste burned e.g. 0.0981 kgN20/t waste as per 2021 Pollution Inventory data for plants with urea-based SNCR - refer to embedded Environment Agency guidance note above or updated version for suitable descriptive text."]
["Total annual carbon dioxide and nitrous oxide emissions as carbon dioxide equivalent (whereby 1 t nitrous oxide is equivalent to 298 t carbon dioxide)","576,565 tonnes CO2e"]
[]
["Biogenic fraction of the waste and biogenic CO2 emissions (only plants burning residual municipal waste, refuse derived fuel or solid recovered fuel)"]
["Yearly average biogenic percentage of the waste by net calorific value (NCV)",0.42799999999999999]
["Description of how biogenic NCV percentage has been calculated or estimated","Bioma",null,null,"Note 3: Where available, data from waste sampling should be used; otherwise, an estimated figure with justification can be used, or a figure assumed on the basis of a national average e.g. 2017 WRAP data for residual waste of 51.8% biogenic energy content - refer to embedded Environment Agency guidance note above or updated version for suitable descriptive text, quoting standards where relevant. "]
["Percentage of total carbon dioxide emissions arising from biogenic waste",0.42]
["Description of how percentage biogenic carbon dioxide emissions have been calculated","Bioma",null,null,"Note 4: Examples include direct measurement via C14 method or BIOMA software - refer to embedded Environment Agency guidance note above or updated version for suitable descriptive text, quoting standards where relevant. Otherwise, as an approximation (and in lieu of any more accurate metrics which may be developed in future), the measured or estimated biogenic fraction by net calorific value can be assumed to be the same as the biogenic CO2 fraction of the total CO2 emissions from the plant. "]
[]
["Comments:"]

{"sheet":"Residue Quality ","index":11,"n_rows":28,"n_cols":6,"rows_kept":28,"cut":false,"hidden":false,"merged":[[27,0,32,6],[24,3,24,4],[26,0,26,6],[19,0,20,1],[21,0,21,1],[22,0,22,1],[23,0,23,1],[24,0,24,1],[21,3,21,4],[22,3,22,4],[21,5,21,6],[22,5,22,6],[23,5,23,6],[24,5,24,6],[5,0,10,6],[23,3,23,4],[19,2,20,2],[20,3,20,4],[20,5,20,6],[19,3,19,6],[18,0,18,6],[12,0,12,6],[13,0,13,1],[13,2,13,6],[14,0,15,1],[14,2,15,6]]}
[{"$f":"+'Cover Page'!$B$29","v":"Annual Performance Report 2022"},null,null,null,{"$f":"+'Cover Page'!$B$33","v":"Kemsley Generating Station"}]
[]
["Residue Quality Monitoring Requirements"]
[]
["Summary of monitoring undertaken and compliance"]
["The residues produced from the process include Incinerator Bottom Ash (IBA) and Air Pollution Control Residues (APCR). \n\nThe IBA is sampled and sent to an approved testing laboratory twice a month for analysis and both the IBA and APCR are sent for a full hazard analysis once per quarter. All hazard analysis results have demonstrated the IBA to be non-hazardous, APCR is hazardous by nature and disposed of accordingly. \n\nAll testing of residues in carried out in accordance with the Industrial Emissions Directive and the ESA sampling and testing protocol. "]
[]
[]
[]
[]
[]
[]
["Commentary on any specific events"]
["Date & Event",null,"Description"]
["01/01/2022 - 31/12/2022",null,"No specific events, all IBA for 2022 was classed as non-hazardous."]
[]
[]
[]
["Residue Quality Monitoring Results"]
["Parameter (unit) ",null,"Limit","Normal Operation "]
[null,null,null,"Bottom ash  ",null,"APC Residues"]
["Loss on Ignition (average %)",null,"<5%","2022 Average = 2%"]
["Total Organic Carbon (average %)",null,"<3%","2022 Average = 0.57%"]
["No. of Assessments Undertaken",null,"---",24,null,4]
["No. of Hazardous Results",null,"---",0]
[]
["Comments :"]
["LOI and TOC for the IBA are an average of the 24 samples taken in 2022, no samples exceeded the set limits within the Environmental Permit.\n\nAll samples were sent for analysis at a fully accredited laboratory."]

{"sheet":"Water","index":12,"n_rows":16,"n_cols":9,"rows_kept":16,"cut":false,"hidden":false,"merged":[[17,0,17,2],[17,3,17,4],[15,0,15,8],[21,0,21,2],[21,3,21,4],[18,0,18,2],[18,3,18,4],[19,0,19,2],[19,3,19,4],[20,0,20,2],[20,3,20,4],[14,0,14,2],[14,3,14,4],[10,0,11,1],[10,2,11,8],[16,0,16,2],[16,3,16,4],[5,0,6,8],[8,0,8,8],[9,0,9,1],[9,2,9,8],[13,0,13,8]]}
[{"$f":"+'Cover Page'!$B$29","v":"Annual Performance Report 2022"},null,null,null,{"$f":"+'Cover Page'!$B$33","v":"Kemsley Generating Station"}]
[]
["Emissions to Water"]
[]
["Summary of monitoring undertaken and compliance"]
["Water balance is achived by a attenuation pond for rainwater with a closed penstock which can emit to the Swale. Regular visual inspections to check for hydrocarbons and particulate are conducted. The penstock requires manual operation and would only be operated following heavy rainfall to prevent flooding, in which case additional inspections and pH testing would be conducted. \n"]
[]
[]
["Commentary on any specific events"]
["Date & Event",null,"Description"]
["-",null,"No events in 2022."]
[]
[]
["Emissions to Water / Sewer"]
["Parameter",null,null,"Monitoring Frequency",null,"Limit","Target","Max.","Average"]
["None set in any permits or consents "]

{"sheet":"Air (periodic)","index":13,"n_rows":40,"n_cols":15,"rows_kept":40,"cut":false,"hidden":false,"merged":[[18,3,18,4],[27,3,27,4],[33,3,33,4],[19,3,19,4],[20,3,20,4],[21,3,21,4],[22,3,22,4],[23,3,23,4],[24,3,24,4],[31,3,31,4],[25,3,25,4],[26,3,26,4],[28,3,28,4],[13,3,13,4],[14,3,14,4],[15,3,15,4],[16,3,16,4],[17,3,17,4],[38,0,38,11],[19,0,19,1],[20,0,20,1],[21,0,21,1],[34,3,34,4],[35,3,35,4],[33,0,33,1],[34,0,34,1],[35,0,35,1],[36,0,36,1],[24,0,24,1],[32,3,32,4],[39,0,40,11],[25,0,25,1],[26,0,26,1],[22,0,22,1],[23,0,23,1],[37,0,37,1],[27,0,27,1],[28,0,28,1],[29,0,29,1],[30,0,30,1],[31,0,31,1],[32,0,32,1],[37,3,37,4],[29,3,29,4],[30,3,30,4],[36,3,36,4],[16,0,16,1],[17,0,17,1],[18,0,18,1],[13,0,13,1],[14,0,14,1],[15,0,15,1],[12,0,12,1],[11,3,11,4],[12,3,12,4],[9,0,10,1],[9,5,9,11],[9,3,10,4],[9,2,10,2],[4,0,4,11],[5,14,8,17],[9,14,11,17],[8,0,8,11],[5,0,6,11],[11,0,11,1]]}
[{"$f":"+'Cover Page'!$B$29","v":"Annual Performance Report 2022"},null,null,null,{"$f":"+'Cover Page'!$B$33","v":"Kemsley Generating Station"}]
[]
["Emissions to Air (Periodically Monitored)"]
[]
["Summary of monitoring undertaken, standards used and compliance",null,null,null,null,null,null,null,null,null,null,null,null,null,"Notes:"]
["Results are below set limits where applicable and comparable with the results from 2022, with the exception of 1 untypical dioxin result (see comments). Sampling and analysis was carried out by MCERTS certified contractors in accordance with the appropriate standards.",null,null,null,null,null,null,null,null,null,null,null,null,null,"Template may require adjustment for any bespoke monitoring requirements of permit. "]
[]
[]
["Results of emissions to air that are periodically monitored"]
["Substance",null,"Ref. Period","Emission Limit Value",null,"Average",null,null,null,null,null,null,null,null,"User to add additional tables as necessary, depending on whether quarterly or bi-annual reporting is required for the compliance year"]
[null,null,null,null,null,"L1 Q1","L1 Q3","L1 Annual Average","L2 Q1","L2 Q3","L2 Annual Average","Both Line Annual Average"]
["Hydrogen fluoride",null,"1 hr","2 mg/m3",null,2.4E-2,2.5999999999999999E-2,{"$f":"AVERAGE(F12:G12)","v":2.5000000000000001E-2},2.5000000000000001E-2,2.9000000000000001E-2,{"$f":"AVERAGE(I12:J12)","v":2.7000000000000003E-2},{"$f":"AVERAGE(F12:G12,I12:J12)","v":2.6000000000000002E-2}]
["Cd and Th and their compounds",null,"6-8hrs","0.05 mg/m3",null,8.4000000000000003E-4,1E-3,{"$f":"AVERAGE(F13:G13)","v":9.2000000000000003E-4},6.6E-4,9.2000000000000003E-4,{"$f":"AVERAGE(I13:J13)","v":7.9000000000000001E-4},{"$f":"AVERAGE(F13:G13,I13:J13)","v":8.5500000000000007E-4}]
["Hg and its compounds",null,"6-8hrs","0.05 mg/m3",null,3.2000000000000001E-2,4.7000000000000002E-3,1.8350000000000002E-2,1.4E-3,6.0999999999999997E-4,1.005E-3,9.6775000000000003E-3]
["Sb, As, Pb, Cr, Co, Cu, Mn, Ni, V and their compounds",null,"6-8hrs","0.5 mg/m3",null,1.6E-2,1.2E-2,1.4E-2,2.4E-2,6.3E-3,1.515E-2,1.4575000000000001E-2]
["Dioxins & Furans (I-TEQ)",null,"6-8hrs","0.1 ng/m3",null,4.4999999999999999E-4,5.0000000000000001E-3,2.725E-3,8.5000000000000006E-3,3.5000000000000001E-3,6.0000000000000001E-3,4.3625000000000001E-3,"*see comment"]
["PCBs (WHO-TEQ Humans / Mammals)",null,"6-8hrs","None set ng/m3",null,1.9000000000000001E-4,5.9999999999999995E-4,3.9499999999999995E-4,0.24,5.9000000000000003E-4,0.120295,6.0345000000000003E-2]
["PCBs (WHO-TEQ Fish)",null,"6-8hrs","None set ng/m3",null,3.6000000000000001E-5,2.8E-5,3.1999999999999999E-5,0.01,2.9E-5,5.0144999999999999E-3,2.5232499999999999E-3]
["PCBs (WHO-TEQ Birds)",null,"6-8hrs","None set ng/m3",null,6.3E-3,1.1999999999999999E-3,3.7499999999999999E-3,0.28999999999999998,1.1000000000000001E-3,0.14554999999999998,7.4649999999999994E-2]
["Dioxins & Furans (WHO-TEQ Humans / Mammals)",null,"6-8hrs","None set ng/m3",null,2.5000000000000001E-3,4.8999999999999998E-3,3.7000000000000002E-3,0.3,3.3E-3,0.15165000000000001,7.7675000000000008E-2]
["Dioxins & Furans (WHO-TEQ Fish)",null,"6-8hrs","None set ng/m3",null,2.7000000000000001E-3,5.5999999999999999E-3,4.15E-3,1.7,3.7000000000000002E-3,0.85185,0.42799999999999999]
["Dioxins & Furans (WHO-TEQ Birds)",null,"6-8hrs","None set ng/m3",null,4.7999999999999996E-3,8.6E-3,6.6999999999999994E-3,2.5,6.1999999999999998E-3,1.2531000000000001,0.62990000000000002]
["Anthanthrene",null,"6-8hrs","None set µg/m3",null,1E-3,1.4E-3,1.2000000000000001E-3,5.1000000000000004E-4,1.4E-3,9.5500000000000001E-4,1.0775000000000001E-3]
["Benzo(a)anthracene",null,"6-8hrs","None set µg/m3",null,3.6999999999999998E-2,1.4E-3,1.9199999999999998E-2,8.6999999999999994E-2,1.4E-3,4.4199999999999996E-2,3.1699999999999999E-2]
["Benzo(a)pyrene",null,"6-8hrs","None set µg/m3",null,1E-3,1.4E-3,1.2000000000000001E-3,2.5000000000000001E-2,1.4E-3,1.32E-2,7.1999999999999998E-3]
["Benzo(b)fluoranthene",null,"6-8hrs","None set µg/m3",null,3.5000000000000003E-2,1.4E-3,1.8200000000000001E-2,9.0999999999999998E-2,1.4E-3,4.6199999999999998E-2,3.2200000000000006E-2]
["Benzo(b)naptho(2,1-d) thiophene",null,"6-8hrs","None set µg/m3",null,5.0000000000000001E-3,1.4E-3,3.2000000000000002E-3,9.2999999999999992E-3,1.4E-3,5.3499999999999997E-3,4.2749999999999993E-3]
["Benzo(c)phenanthrene",null,"6-8hrs","None set µg/m3",null,0.03,1.4E-3,1.5699999999999999E-2,0.02,1.4E-3,1.0699999999999999E-2,1.32E-2]
["Benzo(ghi)perylene",null,"6-8hrs","None set µg/m3",null,2E-3,1.4E-3,1.7000000000000001E-3,2.3E-2,1.4E-3,1.2199999999999999E-2,6.9499999999999996E-3]
["Benzo(k)fluoranthene",null,"6-8hrs","None set µg/m3",null,8.0000000000000002E-3,1.4E-3,4.7000000000000002E-3,0.04,1.4E-3,2.07E-2,1.2699999999999999E-2]
["Cholanthrene",null,"6-8hrs","None set µg/m3",null,1E-3,1.4E-3,1.2000000000000001E-3,5.1000000000000004E-4,1.4E-3,9.5500000000000001E-4,1.0775000000000001E-3]
["Chrysene",null,"6-8hrs","None set µg/m3",null,0.14199999999999999,1.4E-3,7.17E-2,0.12,1.4E-3,6.0699999999999997E-2,6.6199999999999995E-2]
["Cyclopenta(cd)pyrene",null,"6-8hrs","None set µg/m3",null,1E-3,1.4E-3,1.2000000000000001E-3,5.1000000000000004E-4,1.4E-3,9.5500000000000001E-4,1.0775000000000001E-3]
["Dibenzo(ai)pyrene",null,"6-8hrs","None set µg/m3",null,1E-3,1.4E-3,1.2000000000000001E-3,5.1000000000000004E-4,1.4E-3,9.5500000000000001E-4,1.0775000000000001E-3]
["Dibenzo(ah)anthracene",null,"6-8hrs","None set µg/m3",null,1E-3,1.4E-3,1.2000000000000001E-3,4.7000000000000002E-3,1.4E-3,3.0500000000000002E-3,2.1250000000000002E-3]
["Fluoranthene",null,"6-8hrs","None set µg/m3",null,0.96099999999999997,1.0999999999999999E-2,0.48599999999999999,0.23,1.4E-2,0.12200000000000001,0.30399999999999999]
["Indeno(123-cd) pyrene",null,"6-8hrs","None set µg/m3",null,2E-3,1.4E-3,1.7000000000000001E-3,2.8000000000000001E-2,1.4E-3,1.47E-2,8.199999999999999E-3]
["Naphthalene",null,"6-8hrs","None set µg/m3",null,3.9,0.19,2.0449999999999999,6.8000000000000005E-2,5.0999999999999997E-2,5.9499999999999997E-2,1.0522499999999999]
["Comments :"]
["*Dioxin retest result used in above figures (in blue). The original result of 1.6ng/m3 was not typical for the facility and no route cause could be indentified by the facility or test laboratory. This was reported, investigated and then scored by the Environment Agency in CAR form JP3135DK/0439957."]

{"sheet":"Air (CEMS)","index":14,"n_rows":29,"n_cols":16,"rows_kept":29,"cut":false,"hidden":false,"merged":[[5,0,8,12],[26,0,26,12],[28,0,29,12],[10,0,10,12],[11,0,12,0],[11,2,12,2],[11,1,12,1],[11,3,11,4],[11,5,11,6],[11,7,11,8],[11,9,11,10],[11,11,11,12]]}
[{"$f":"+'Cover Page'!$B$29","v":"Annual Performance Report 2022"},null,null,null,null,null,null,null,{"$f":"+'Cover Page'!$B$33","v":"Kemsley Generating Station"}]
[]
["Emissions to Air (continously monitored)"]
[null,null,null,null,null,null,null,null,null,null,null,null,null,null,null,"Notes:"]
["Summary of monitoring undertaken, standards used and compliance",null,null,null,null,null,null,null,null,null,null,null,null,null,null,"Template may require adjustment for any bespoke monitoring requirements of permit"]
["For 2022 the facility achieve 100% compliance with the limits set in the Environmental Permit for all continiuously monitored determinands.\n\nHCl, SO2, NOx, TOC and CO all have limits set out in the Environmental Permit; these determinands are continuously monitored by CEMS's in compliance with EN 14181. NH3, O2, CO2 and Water Vapour and are also continuously monitored by the CEMS's.\n\nAll instruments are QAL1 compliant and undergo annual checks either in the form of a QAL2 or an Annual Surveillance Test compliant with the requirements of EN 14181.\n",null,null,null,null,null,null,null,null,null,null,null,null,null,null,"Report to 2 decimal places, i.e. xx.xx%"]
[]
[]
[]
[]
["Results of emissions to air that are continuously monitored (maximum and average values for each line)"]
["Substance","Reference Period","Emission Limit Value","A1",null,"A2",null,"A3",null,"A4",null,"A5"]
[null,null,null,"Max.","Avg.","Max.","Avg.","Max.","Avg.","Max.","Avg.","Max.","Avg."]
["Oxides of nitrogen","Daily mean","200 mg/m3 ",{"$f":"NOx!O19","v":179.38},{"$f":"NOx!N19","v":175.3183333333333},{"$f":"NOx!O34","v":185.24},{"$f":"NOx!N34","v":175.36999999999998},"-","-","-","-","-","-"]
[null,"½ hourly mean","400 mg/m3 ",{"$f":"NOx!M19","v":237.35},{"$f":"NOx!L19","v":175.31000000000003},{"$f":"NOx!M34","v":258.68},{"$f":"NOx!L34","v":175.36833333333331},"-","-","-","-","-","-"]
["Particulates","Daily mean","10 mg/m3",{"$f":"Particulates!O19","v":0.14000000000000001},{"$f":"Particulates!N19","v":7.7500000000000013E-2},{"$f":"Particulates!O34","v":1.18},{"$f":"Particulates!N34","v":0.3133333333333333},"-","-","-","-","-","-"]
[null,"½ hourly mean","30 mg/m3 ",{"$f":"Particulates!M19","v":0.44},{"$f":"Particulates!L19","v":7.6666666666666675E-2},{"$f":"Particulates!M34","v":3.91},{"$f":"Particulates!L34","v":0.3125},"-","-","-","-","-","-"]
["Total Organic Carbon ","Daily mean","10 mg/m3 ",{"$f":"TOC!O19","v":0.34},{"$f":"TOC!N19","v":0.19999999999999998},{"$f":"TOC!O34","v":0.35},{"$f":"TOC!N34","v":0.11083333333333335},"-","-","-","-","-","-"]
[null,"½ hourly mean","20 mg/m3 ",{"$f":"TOC!M19","v":3.15},{"$f":"TOC!L19","v":0.20749999999999999},{"$f":"TOC!M34","v":5.81},{"$f":"TOC!L34","v":0.11166666666666669},"-","-","-","-","-","-"]
["Hydrogen chloride ","Daily mean","10 mg/m3 ",{"$f":"HCl!O19","v":7.62},{"$f":"HCl!N19","v":4.123333333333334},{"$f":"HCl!O34","v":5.07},{"$f":"HCl!M34","v":13.06},"-","-","-","-","-","-"]
[null,"½ hourly mean","60 mg/m3 ",{"$f":"HCl!M19","v":13.05},{"$f":"HCl!L19","v":4.0775000000000006},{"$f":"HCl!N34","v":2.7158333333333338},{"$f":"HCl!L34","v":2.7174999999999998},"-","-","-","-","-","-"]
["Sulphur dioxide","Daily mean","50 mg/m3 ",{"$f":"'SO2'!O19","v":23.83},{"$f":"'SO2'!N19","v":2.9708333333333332},{"$f":"'SO2'!O34","v":17.59},{"$f":"'SO2'!N34","v":3.0708333333333342},"-","-","-","-","-","-"]
[null,"½ hourly mean","200 mg/m3 ",{"$f":"'SO2'!M19","v":93.04},{"$f":"'SO2'!L19","v":3.1541666666666668},{"$f":"'SO2'!M34","v":97.55},{"$f":"'SO2'!L34","v":3.0933333333333333},"-","-","-","-","-","-"]
["Carbon monoxide ","Daily mean","50 mg/m3 ",{"$f":"'CO 95% 10 min'!Q19","v":10.54},{"$f":"'CO 95% 10 min'!P19","v":4.2124999999999995},{"$f":"'CO 95% 10 min'!Q34","v":18.649999999999999},{"$f":"'CO 95% 10 min'!O34","v":1105.53},"-","-","-","-","-","-"]
[null,"95%ile 10-min avg *","150 mg/m3 *",{"$f":"'CO 95% 10 min'!O19","v":605.05999999999995},{"$f":"'CO 95% 10 min'!M19","v":10.123333333333335},{"$f":"'CO 95% 10 min'!P34","v":4.0841666666666674},{"$f":"'CO 95% 10 min'!M34","v":19.230833333333333},"-","-","-","-","-","-"]
[" Ammonia","Daily mean","No limit set",{"$f":"'NH3'!O19","v":2.04},{"$f":"'NH3'!N19","v":0.61166666666666669},{"$f":"'NH3'!O34","v":0.97},{"$f":"'NH3'!N34","v":0.32333333333333331},"-","-","-","-","-","-"]
["* = delete or amend as appropriate"]
["Comments :"]
["K3 facility operates 2 lines (2 boilers and 2 emission points) with 1 common turbine."]

{"sheet":"HCl","index":15,"n_rows":79,"n_cols":17,"rows_kept":79,"cut":false,"hidden":false,"merged":[[12,16,15,18],[51,9,63,9],[66,9,78,9],[4,9,4,14],[4,1,4,3],[4,4,4,6],[48,0,51,6],[47,0,47,6],[6,9,18,9],[21,9,33,9],[36,9,48,9],[3,16,7,18],[9,16,11,18]]}
[{"$f":"+'Cover Page'!$B$29","v":"Annual Performance Report 2022"},null,null,null,{"$f":"+'Cover Page'!$B$33","v":"Kemsley Generating Station"}]
[]
["Monitoring of Hydrogen Chloride emissions",null,null,"Whole Installation",null,null,"See  Notes in Cell Q3",null,null,{"$f":"+A3","v":"Monitoring of Hydrogen Chloride emissions"},null,null,null,"Per Combustion Line",null,null,"Notes:"]
[null,null,null,null,null,null,null,null,null,null,null,null,null,null,null,null,"User to add logic to complete Whole installation, Table A5:G18. From the data in Per Combustion Line, Table J6:O79, subject to No. of lines installed"]
["mg/Nm3","1/2 Hourly Reference Periods",null,null,"Daily Reference Periods"]
[{"$f":"+'Cover Page'!C39","v":2022},"1/2 hourly HCl ELV","Monthly 1/2 hourly mean","Highest 1/2 hourly maximum","Daily HCl ELV","Monthly daily mean","Highest daily maximum",null,null,{"$f":"+A6","v":2022},"mg/Nm3","Monthly 1/2 hourly mean","Monthly 1/2 hourly maximum","Monthly daily mean","Monthly daily maximum"]
["Jan",60,3,10.44,10,2.98,5.2,null,null,"A1","Jan",3.61,10.44,3.59,5.2]
["Feb",60,3.53,12.27,10,3.54,6.71,null,null,null,"Feb",4.4000000000000004,12.27,4.4800000000000004,6.71]
["Mar",60,2.8,8.23,10,2.79,5.9,null,null,null,"Mar",4.33,8.23,4.43,5.9,null,"Whole Installation table A5:G18:"]
["Apr",60,2.83,10.83,10,2.83,5.53,null,null,null,"Apr",3.4,10.83,3.42,5.53,null,"Mean: for 1/2 hourly and daily periods calculate mean of values across all operational combustion lines for the month"]
["May",60,3.02,10.79,10,3.02,4.26,null,null,null,"May",3.36,10.79,3.38,4.26]
["Jun",60,3.45,12.26,10,3.45,6.37,null,null,null,"Jun",4.13,12.26,4.13,6.37]
["Jul",60,3.74,11.15,10,3.74,6.81,null,null,null,"Jul",4.7699999999999996,11.15,4.7699999999999996,6.81,null,"Maximum: for 1/2 hourly and daily periods use the highest value across all operational combustion lines for the month"]
["Aug",60,4.03,10.56,10,4.05,7.4,null,null,null,"Aug",4.72,10.56,4.72,7.4]
["Sep",60,3.69,13.05,10,3.74,6.74,null,null,null,"Sep",4.09,13.05,4.25,6.74]
["Oct",60,3.62,11.2,10,3.62,7.62,null,null,null,"Oct",4.5,11.2,4.5,7.62]
["Nov",60,3.31,13.06,10,3.33,5.37,null,null,null,"Nov",3.63,9.66,3.7,5.37]
["Dec",60,3.48,10.72,10,3.54,7.41,null,null,null,"Dec",3.99,10.57,4.1100000000000003,7.41]
[null,null,null,null,null,null,null,null,null,null,"Annual",{"$f":"AVERAGE(L7:L18)","v":4.0775000000000006},{"$f":"MAX(M7:M18)","v":13.05},{"$f":"AVERAGE(N7:N18)","v":4.123333333333334},{"$f":"MAX(O7:O18)","v":7.62}]
[]
[null,null,null,null,null,null,null,null,null,{"$f":"+A6","v":2022},"mg/Nm3","Monthly 1/2 hourly mean","Monthly 1/2 hourly maximum","Monthly daily mean","Monthly daily maximum"]
[null,null,null,null,null,null,null,null,null,"A2","Jan",1.89,5.14,1.88,2.59]
[null,null,null,null,null,null,null,null,null,null,"Feb",2.84,9.3699999999999992,2.84,4.87]
[null,null,null,null,null,null,null,null,null,null,"Mar",2.19,7.09,2.2000000000000002,3.68]
[null,null,null,null,null,null,null,null,null,null,"Apr",2.37,6.56,2.37,3.33]
[null,null,null,null,null,null,null,null,null,null,"May",2.69,7.58,2.69,3.49]
[null,null,null,null,null,null,null,null,null,null,"Jun",2.77,7.98,2.77,3.92]
[null,null,null,null,null,null,null,null,null,null,"Jul",2.72,9.49,2.72,3.59]
[null,null,null,null,null,null,null,null,null,null,"Aug",3.25,9.94,3.25,4.3899999999999997]
[null,null,null,null,null,null,null,null,null,null,"Sep",3.42,11.26,3.42,4.87]
[null,null,null,null,null,null,null,null,null,null,"Oct",2.74,10.84,2.74,5.07]
[null,null,null,null,null,null,null,null,null,null,"Nov",2.89,13.06,2.87,3.97]
[null,null,null,null,null,null,null,null,null,null,"Dec",2.84,10.72,2.84,4.0999999999999996]
[null,null,null,null,null,null,null,null,null,null,"Annual",{"$f":"AVERAGE(L22:L33)","v":2.7174999999999998},{"$f":"MAX(M22:M33)","v":13.06},{"$f":"AVERAGE(N22:N33)","v":2.7158333333333338},{"$f":"MAX(O22:O33)","v":5.07}]
[]
[null,null,null,null,null,null,null,null,null,{"$f":"+A6","v":2022},"mg/Nm3","Monthly 1/2 hourly mean","Monthly 1/2 hourly maximum","Monthly daily mean","Monthly daily maximum"]
[null,null,null,null,null,null,null,null,null,"A3","Jan"]
[null,null,null,null,null,null,null,null,null,null,"Feb"]
[null,null,null,null,null,null,null,null,null,null,"Mar"]
[null,null,null,null,null,null,null,null,null,null,"Apr"]
[null,null,null,null,null,null,null,null,null,null,"May"]
[null,null,null,null,null,null,null,null,null,null,"Jun"]
[null,null,null,null,null,null,null,null,null,null,"Jul"]
[null,null,null,null,null,null,null,null,null,null,"Aug"]
[null,null,null,null,null,null,null,null,null,null,"Sep"]
[null,null,null,null,null,null,null,null,null,null,"Oct"]
[null,null,null,null,null,null,null,null,null,null,"Nov"]
["Comments :",null,null,null,null,null,null,null,null,null,"Dec"]
["K3 facility operates 2 lines (2 boilers and 2 emission points) with 1 common turbine.",null,null,null,null,null,null,null,null,null,"Annual",{"$f":"AVERAGE(L37:L48)","v":{"$error":"#DIV/0!"}},{"$f":"MAX(M37:M48)","v":0},{"$f":"AVERAGE(N37:N48)","v":{"$error":"#DIV/0!"}},{"$f":"MAX(O37:O48)","v":0}]
[]
[null,null,null,null,null,null,null,null,null,{"$f":"+A6","v":2022},"mg/Nm3","Monthly 1/2 hourly mean","Monthly 1/2 hourly maximum","Monthly daily mean","Monthly daily maximum"]
[null,null,null,null,null,null,null,null,null,"A4","Jan"]
[null,null,null,null,null,null,null,null,null,null,"Feb"]
[null,null,null,null,null,null,null,null,null,null,"Mar"]
[null,null,null,null,null,null,null,null,null,null,"Apr"]
[null,null,null,null,null,null,null,null,null,null,"May"]
[null,null,null,null,null,null,null,null,null,null,"Jun"]
[null,null,null,null,null,null,null,null,null,null,"Jul"]
[null,null,null,null,null,null,null,null,null,null,"Aug"]
[null,null,null,null,null,null,null,null,null,null,"Sep"]
[null,null,null,null,null,null,null,null,null,null,"Oct"]
[null,null,null,null,null,null,null,null,null,null,"Nov"]
[null,null,null,null,null,null,null,null,null,null,"Dec"]
[null,null,null,null,null,null,null,null,null,null,"Annual",{"$f":"AVERAGE(L52:L63)","v":{"$error":"#DIV/0!"}},{"$f":"MAX(M52:M63)","v":0},{"$f":"AVERAGE(N52:N63)","v":{"$error":"#DIV/0!"}},{"$f":"MAX(O52:O63)","v":0}]
[]
[null,null,null,null,null,null,null,null,null,{"$f":"+A6","v":2022},"mg/Nm3","Monthly 1/2 hourly mean","Monthly 1/2 hourly maximum","Monthly daily mean","Monthly daily maximum"]
[null,null,null,null,null,null,null,null,null,"A5","Jan"]
[null,null,null,null,null,null,null,null,null,null,"Feb"]
[null,null,null,null,null,null,null,null,null,null,"Mar"]
[null,null,null,null,null,null,null,null,null,null,"Apr"]
[null,null,null,null,null,null,null,null,null,null,"May"]
[null,null,null,null,null,null,null,null,null,null,"Jun"]
[null,null,null,null,null,null,null,null,null,null,"Jul"]
[null,null,null,null,null,null,null,null,null,null,"Aug"]
[null,null,null,null,null,null,null,null,null,null,"Sep"]
[null,null,null,null,null,null,null,null,null,null,"Oct"]
[null,null,null,null,null,null,null,null,null,null,"Nov"]
[null,null,null,null,null,null,null,null,null,null,"Dec"]
[null,null,null,null,null,null,null,null,null,null,"Annual",{"$f":"AVERAGE(L67:L78)","v":{"$error":"#DIV/0!"}},{"$f":"MAX(M67:M78)","v":0},{"$f":"AVERAGE(N67:N78)","v":{"$error":"#DIV/0!"}},{"$f":"MAX(O67:O78)","v":0}]

{"sheet":"SO2","index":16,"n_rows":79,"n_cols":17,"rows_kept":79,"cut":false,"hidden":false,"merged":[[3,16,7,18],[9,16,11,18],[12,16,15,18],[66,9,78,9],[4,1,4,3],[4,4,4,6],[4,9,4,14],[6,9,18,9],[21,9,33,9],[36,9,48,9],[47,0,47,6],[48,0,51,6],[51,9,63,9]]}
[{"$f":"+'Cover Page'!$B$29","v":"Annual Performance Report 2022"},null,null,null,{"$f":"+'Cover Page'!$B$33","v":"Kemsley Generating Station"}]
[]
["Monitoring of Sulphur dioxide emissions",null,null,"Whole Installation",null,null,"See  Notes in Cell Q3",null,null,{"$f":"+A3","v":"Monitoring of Sulphur dioxide emissions"},null,null,null,"Per Combustion Line",null,null,"Notes:"]
[null,null,null,null,null,null,null,null,null,null,null,null,null,null,null,null,"User to add logic to complete Whole installation, Table A5:G18. From the data in Per Combustion Line, Table J6:O79, subject to No. of lines installed"]
["mg/Nm3","1/2 Hourly Reference Periods",null,null,"Daily Reference Periods"]
[{"$f":"+'Cover Page'!C39","v":2022},"1/2 hourly SO2 ELV","Monthly 1/2 hourly mean","Highest 1/2 hourly maximum","Daily SO2 ELV","Monthly daily mean","Highest daily maximum",null,null,{"$f":"+A6","v":2022},"mg/Nm3","Monthly 1/2 hourly mean","Monthly 1/2 hourly maximum","Monthly daily mean","Monthly daily maximum"]
["Jan",200,2.09,48.15,50,2.0299999999999998,9.2799999999999994,null,null,"A1","Jan",2,48.15,1.89,9.2799999999999994]
["Feb",200,7.28,83.85,50,7.06,23.83,null,null,null,"Feb",8.01,83.85,7.51,23.83]
["Mar",200,6,86.16,50,5.78,17.59,null,null,null,"Mar",4.6100000000000003,86.16,3.58,7.13,null,"Whole Installation table A5:G18:"]
["Apr",200,5.97,74.010000000000005,50,5.82,21.75,null,null,null,"Apr",6.63,74.010000000000005,6.25,21.75,null,"Mean: for 1/2 hourly and daily periods calculate mean of values across all operational combustion lines for the month"]
["May",200,3.41,78.510000000000005,50,3.41,7.74,null,null,null,"May",3.85,78.510000000000005,3.87,7.74]
["Jun",200,2.42,93.04,50,2.42,9.67,null,null,null,"Jun",4.66,93.04,4.66,9.67]
["Jul",200,2.21,65.56,50,2.21,6.27,null,null,null,"Jul",2.14,42.27,2.14,5.21,null,"Maximum: for 1/2 hourly and daily periods use the highest value across all operational combustion lines for the month"]
["Aug",200,1.23,49.72,50,1.19,5.3,null,null,null,"Aug",0.44,34.79,0.44,4.83]
["Sep",200,0.91,52.37,50,0.89,6,null,null,null,"Sep",-0.31,36.659999999999997,0,2.88]
["Oct",200,1.95,50.72,50,1.95,10.029999999999999,null,null,null,"Oct",2.0099999999999998,46.48,2.0099999999999998,10.029999999999999]
["Nov",200,0.94,44.04,50,0.8,5.47,null,null,null,"Nov",0.67,29.13,0.44,5.47]
["Dec",200,3.36,97.55,50,3.09,13.16,null,null,null,"Dec",3.14,67.87,2.86,13.16]
[null,null,null,null,null,null,null,null,null,null,"Annual",{"$f":"AVERAGE(L7:L18)","v":3.1541666666666668},{"$f":"MAX(M7:M18)","v":93.04},{"$f":"AVERAGE(N7:N18)","v":2.9708333333333332},{"$f":"MAX(O7:O18)","v":23.83}]
[]
[null,null,null,null,null,null,null,null,null,{"$f":"+A6","v":2022},"mg/Nm3","Monthly 1/2 hourly mean","Monthly 1/2 hourly maximum","Monthly daily mean","Monthly daily maximum"]
[null,null,null,null,null,null,null,null,null,"A2","Jan",2.25,32.130000000000003,2.2799999999999998,6.44]
[null,null,null,null,null,null,null,null,null,null,"Feb",6.71,71.790000000000006,6.72,17.34]
[null,null,null,null,null,null,null,null,null,null,"Mar",6.56,62.59,6.58,17.59]
[null,null,null,null,null,null,null,null,null,null,"Apr",5.45,68.900000000000006,5.48,15.32]
[null,null,null,null,null,null,null,null,null,null,"May",2.98,51.31,2.98,6.75]
[null,null,null,null,null,null,null,null,null,null,"Jun",0.19,46.72,0.19,3.39]
[null,null,null,null,null,null,null,null,null,null,"Jul",2.2799999999999998,65.56,2.2799999999999998,6.27]
[null,null,null,null,null,null,null,null,null,null,"Aug",2.12,49.72,2.1,5.3]
[null,null,null,null,null,null,null,null,null,null,"Sep",1.75,52.37,1.75,6]
[null,null,null,null,null,null,null,null,null,null,"Oct",1.89,50.72,1.89,5.27]
[null,null,null,null,null,null,null,null,null,null,"Nov",1.29,44.04,1.24,5.29]
[null,null,null,null,null,null,null,null,null,null,"Dec",3.65,97.55,3.36,11.6]
[null,null,null,null,null,null,null,null,null,null,"Annual",{"$f":"AVERAGE(L22:L33)","v":3.0933333333333333},{"$f":"MAX(M22:M33)","v":97.55},{"$f":"AVERAGE(N22:N33)","v":3.0708333333333342},{"$f":"MAX(O22:O33)","v":17.59}]
[]
[null,null,null,null,null,null,null,null,null,{"$f":"+A6","v":2022},"mg/Nm3","Monthly 1/2 hourly mean","Monthly 1/2 hourly maximum","Monthly daily mean","Monthly daily maximum"]
[null,null,null,null,null,null,null,null,null,"A3","Jan"]
[null,null,null,null,null,null,null,null,null,null,"Feb"]
[null,null,null,null,null,null,null,null,null,null,"Mar"]
[null,null,null,null,null,null,null,null,null,null,"Apr"]
[null,null,null,null,null,null,null,null,null,null,"May"]
[null,null,null,null,null,null,null,null,null,null,"Jun"]
[null,null,null,null,null,null,null,null,null,null,"Jul"]
[null,null,null,null,null,null,null,null,null,null,"Aug"]
[null,null,null,null,null,null,null,null,null,null,"Sep"]
[null,null,null,null,null,null,null,null,null,null,"Oct"]
[null,null,null,null,null,null,null,null,null,null,"Nov"]
["Comments :",null,null,null,null,null,null,null,null,null,"Dec"]
["K3 facility operates 2 lines (2 boilers and 2 emission points) with 1 common turbine.",null,null,null,null,null,null,null,null,null,"Annual",{"$f":"AVERAGE(L37:L48)","v":{"$error":"#DIV/0!"}},{"$f":"MAX(M37:M48)","v":0},{"$f":"AVERAGE(N37:N48)","v":{"$error":"#DIV/0!"}},{"$f":"MAX(O37:O48)","v":0}]
[]
[null,null,null,null,null,null,null,null,null,{"$f":"+A6","v":2022},"mg/Nm3","Monthly 1/2 hourly mean","Monthly 1/2 hourly maximum","Monthly daily mean","Monthly daily maximum"]
[null,null,null,null,null,null,null,null,null,"A4","Jan"]
[null,null,null,null,null,null,null,null,null,null,"Feb"]
[null,null,null,null,null,null,null,null,null,null,"Mar"]
[null,null,null,null,null,null,null,null,null,null,"Apr"]
[null,null,null,null,null,null,null,null,null,null,"May"]
[null,null,null,null,null,null,null,null,null,null,"Jun"]
[null,null,null,null,null,null,null,null,null,null,"Jul"]
[null,null,null,null,null,null,null,null,null,null,"Aug"]
[null,null,null,null,null,null,null,null,null,null,"Sep"]
[null,null,null,null,null,null,null,null,null,null,"Oct"]
[null,null,null,null,null,null,null,null,null,null,"Nov"]
[null,null,null,null,null,null,null,null,null,null,"Dec"]
[null,null,null,null,null,null,null,null,null,null,"Annual",{"$f":"AVERAGE(L52:L63)","v":{"$error":"#DIV/0!"}},{"$f":"MAX(M52:M63)","v":0},{"$f":"AVERAGE(N52:N63)","v":{"$error":"#DIV/0!"}},{"$f":"MAX(O52:O63)","v":0}]
[]
[null,null,null,null,null,null,null,null,null,{"$f":"+A6","v":2022},"mg/Nm3","Monthly 1/2 hourly mean","Monthly 1/2 hourly maximum","Monthly daily mean","Monthly daily maximum"]
[null,null,null,null,null,null,null,null,null,"A5","Jan"]
[null,null,null,null,null,null,null,null,null,null,"Feb"]
[null,null,null,null,null,null,null,null,null,null,"Mar"]
[null,null,null,null,null,null,null,null,null,null,"Apr"]
[null,null,null,null,null,null,null,null,null,null,"May"]
[null,null,null,null,null,null,null,null,null,null,"Jun"]
[null,null,null,null,null,null,null,null,null,null,"Jul"]
[null,null,null,null,null,null,null,null,null,null,"Aug"]
[null,null,null,null,null,null,null,null,null,null,"Sep"]
[null,null,null,null,null,null,null,null,null,null,"Oct"]
[null,null,null,null,null,null,null,null,null,null,"Nov"]
[null,null,null,null,null,null,null,null,null,null,"Dec"]
[null,null,null,null,null,null,null,null,null,null,"Annual",{"$f":"AVERAGE(L67:L78)","v":{"$error":"#DIV/0!"}},{"$f":"MAX(M67:M78)","v":0},{"$f":"AVERAGE(N67:N78)","v":{"$error":"#DIV/0!"}},{"$f":"MAX(O67:O78)","v":0}]

{"sheet":"NOx","index":17,"n_rows":79,"n_cols":17,"rows_kept":79,"cut":false,"hidden":false,"merged":[[3,16,7,18],[9,16,11,18],[12,16,15,18],[66,9,78,9],[4,1,4,3],[4,4,4,6],[4,9,4,14],[6,9,18,9],[21,9,33,9],[36,9,48,9],[47,0,47,6],[48,0,51,6],[51,9,63,9]]}
[{"$f":"+'Cover Page'!$B$29","v":"Annual Performance Report 2022"},null,null,null,{"$f":"+'Cover Page'!$B$33","v":"Kemsley Generating Station"}]
[]
["Monitoring of Oxides of Nitrogen emissions",null,null,"Whole Installation",null,null,"See  Notes in Cell Q3",null,null,{"$f":"+A3","v":"Monitoring of Oxides of Nitrogen emissions"},null,null,null,"Per Combustion Line",null,null,"Notes:"]
[null,null,null,null,null,null,null,null,null,null,null,null,null,null,null,null,"User to add logic to complete Whole installation, Table A5:G18. From the data in Per Combustion Line, Table J6:O79, subject to No. of lines installed"]
["mg/Nm3","1/2 Hourly Reference Periods",null,null,"Daily Reference Periods"]
[{"$f":"+'Cover Page'!C39","v":2022},"1/2 hourly NOx ELV","Monthly 1/2 hourly mean","Highest 1/2 hourly maximum","Daily NOx ELV","Monthly daily mean","Highest daily maximum",null,null,{"$f":"+A6","v":2022},"mg/Nm3","Monthly 1/2 hourly mean","Monthly 1/2 hourly maximum","Monthly daily mean","Monthly daily maximum"]
["Jan",400,175.3,218.35,200,175.35,179.36,null,null,"A1","Jan",175.36,218.35,175.43,179.36]
["Feb",400,175.43,243.38,200,175.41,183.17,null,null,null,"Feb",175.26,214.76,175.2,175.98]
["Mar",400,175.75,258.68,200,175.77,185.24,null,null,null,"Mar",175.21,201.9,175.21,175.36,null,"Whole Installation table A5:G18:"]
["Apr",400,174.86,226.87,200,174.86,177.32,null,null,null,"Apr",174.71,203.76,174.7,177.3,null,"Mean: for 1/2 hourly and daily periods calculate mean of values across all operational combustion lines for the month"]
["May",400,175.43,231.15,200,175.44,179.22,null,null,null,"May",175.58,231.15,175.6,179.22]
["Jun",400,175.33,211.63,200,175.33,176.52,null,null,null,"Jun",175.34,207.72,175.34,176.52]
["Jul",400,175.25,203.25,200,175.25,176.46,null,null,null,"Jul",175.23,199.1,175.23,176.18,null,"Maximum: for 1/2 hourly and daily periods use the highest value across all operational combustion lines for the month"]
["Aug",400,175.26,217.09,200,175.26,176.88,null,null,null,"Aug",175.29,217.09,175.29,176.88]
["Sep",400,175.55,207.14,200,175.57,184.44,null,null,null,"Sep",175.25,207.14,175.26,176.14]
["Oct",400,175.43,228.19,200,175.43,179.58,null,null,null,"Oct",175.28,225.72,175.28,176.57]
["Nov",400,175.53,237.35,200,175.56,177.94,null,null,null,"Nov",175.72,237.35,175.77,177.94]
["Dec",400,175.27,222.41,200,175.28,179.38,null,null,null,"Dec",175.49,222.41,175.51,179.38]
[null,null,null,null,null,null,null,null,null,null,"Annual",{"$f":"AVERAGE(L7:L18)","v":175.31000000000003},{"$f":"MAX(M7:M18)","v":237.35},{"$f":"AVERAGE(N7:N18)","v":175.3183333333333},{"$f":"MAX(O7:O18)","v":179.38}]
[]
[null,null,null,null,null,null,null,null,null,{"$f":"+A6","v":2022},"mg/Nm3","Monthly 1/2 hourly mean","Monthly 1/2 hourly maximum","Monthly daily mean","Monthly daily maximum"]
[null,null,null,null,null,null,null,null,null,"A2","Jan",175.21,203.82,175.22,176.18]
[null,null,null,null,null,null,null,null,null,null,"Feb",175.56,243.38,175.57,183.17]
[null,null,null,null,null,null,null,null,null,null,"Mar",175.97,258.68,175.97,185.24]
[null,null,null,null,null,null,null,null,null,null,"Apr",174.98,226.87,174.98,177.32]
[null,null,null,null,null,null,null,null,null,null,"May",175.28,197.38,175.28,176.69]
[null,null,null,null,null,null,null,null,null,null,"Jun",175.32,211.63,175.32,176.48]
[null,null,null,null,null,null,null,null,null,null,"Jul",175.26,203.25,175.26,176.46]
[null,null,null,null,null,null,null,null,null,null,"Aug",175.23,198.93,175.22,175.68]
[null,null,null,null,null,null,null,null,null,null,"Sep",175.76,204.76,175.76,184.44]
[null,null,null,null,null,null,null,null,null,null,"Oct",175.58,228.19,175.58,179.58]
[null,null,null,null,null,null,null,null,null,null,"Nov",175.29,224.2,175.3,175.94]
[null,null,null,null,null,null,null,null,null,null,"Dec",174.98,194.43,174.98,175.37]
[null,null,null,null,null,null,null,null,null,null,"Annual",{"$f":"AVERAGE(L22:L33)","v":175.36833333333331},{"$f":"MAX(M22:M33)","v":258.68},{"$f":"AVERAGE(N22:N33)","v":175.36999999999998},{"$f":"MAX(O22:O33)","v":185.24}]
[]
[null,null,null,null,null,null,null,null,null,{"$f":"+A6","v":2022},"mg/Nm3","Monthly 1/2 hourly mean","Monthly 1/2 hourly maximum","Monthly daily mean","Monthly daily maximum"]
[null,null,null,null,null,null,null,null,null,"A3","Jan"]
[null,null,null,null,null,null,null,null,null,null,"Feb"]
[null,null,null,null,null,null,null,null,null,null,"Mar"]
[null,null,null,null,null,null,null,null,null,null,"Apr"]
[null,null,null,null,null,null,null,null,null,null,"May"]
[null,null,null,null,null,null,null,null,null,null,"Jun"]
[null,null,null,null,null,null,null,null,null,null,"Jul"]
[null,null,null,null,null,null,null,null,null,null,"Aug"]
[null,null,null,null,null,null,null,null,null,null,"Sep"]
[null,null,null,null,null,null,null,null,null,null,"Oct"]
[null,null,null,null,null,null,null,null,null,null,"Nov"]
["Comments :",null,null,null,null,null,null,null,null,null,"Dec"]
["K3 facility operates 2 lines (2 boilers and 2 emission points) with 1 common turbine.",null,null,null,null,null,null,null,null,null,"Annual",{"$f":"AVERAGE(L37:L48)","v":{"$error":"#DIV/0!"}},{"$f":"MAX(M37:M48)","v":0},{"$f":"AVERAGE(N37:N48)","v":{"$error":"#DIV/0!"}},{"$f":"MAX(O37:O48)","v":0}]
[]
[null,null,null,null,null,null,null,null,null,{"$f":"+A6","v":2022},"mg/Nm3","Monthly 1/2 hourly mean","Monthly 1/2 hourly maximum","Monthly daily mean","Monthly daily maximum"]
[null,null,null,null,null,null,null,null,null,"A4","Jan"]
[null,null,null,null,null,null,null,null,null,null,"Feb"]
[null,null,null,null,null,null,null,null,null,null,"Mar"]
[null,null,null,null,null,null,null,null,null,null,"Apr"]
[null,null,null,null,null,null,null,null,null,null,"May"]
[null,null,null,null,null,null,null,null,null,null,"Jun"]
[null,null,null,null,null,null,null,null,null,null,"Jul"]
[null,null,null,null,null,null,null,null,null,null,"Aug"]
[null,null,null,null,null,null,null,null,null,null,"Sep"]
[null,null,null,null,null,null,null,null,null,null,"Oct"]
[null,null,null,null,null,null,null,null,null,null,"Nov"]
[null,null,null,null,null,null,null,null,null,null,"Dec"]
[null,null,null,null,null,null,null,null,null,null,"Annual",{"$f":"AVERAGE(L52:L63)","v":{"$error":"#DIV/0!"}},{"$f":"MAX(M52:M63)","v":0},{"$f":"AVERAGE(N52:N63)","v":{"$error":"#DIV/0!"}},{"$f":"MAX(O52:O63)","v":0}]
[]
[null,null,null,null,null,null,null,null,null,{"$f":"+A6","v":2022},"mg/Nm3","Monthly 1/2 hourly mean","Monthly 1/2 hourly maximum","Monthly daily mean","Monthly daily maximum"]
[null,null,null,null,null,null,null,null,null,"A5","Jan"]
[null,null,null,null,null,null,null,null,null,null,"Feb"]
[null,null,null,null,null,null,null,null,null,null,"Mar"]
[null,null,null,null,null,null,null,null,null,null,"Apr"]
[null,null,null,null,null,null,null,null,null,null,"May"]
[null,null,null,null,null,null,null,null,null,null,"Jun"]
[null,null,null,null,null,null,null,null,null,null,"Jul"]
[null,null,null,null,null,null,null,null,null,null,"Aug"]
[null,null,null,null,null,null,null,null,null,null,"Sep"]
[null,null,null,null,null,null,null,null,null,null,"Oct"]
[null,null,null,null,null,null,null,null,null,null,"Nov"]
[null,null,null,null,null,null,null,null,null,null,"Dec"]
[null,null,null,null,null,null,null,null,null,null,"Annual",{"$f":"AVERAGE(L67:L78)","v":{"$error":"#DIV/0!"}},{"$f":"MAX(M67:M78)","v":0},{"$f":"AVERAGE(N67:N78)","v":{"$error":"#DIV/0!"}},{"$f":"MAX(O67:O78)","v":0}]

{"sheet":"TOC","index":18,"n_rows":79,"n_cols":17,"rows_kept":79,"cut":false,"hidden":false,"merged":[[3,16,7,18],[9,16,11,18],[12,16,15,18],[66,9,78,9],[4,1,4,3],[4,4,4,6],[4,9,4,14],[6,9,18,9],[21,9,33,9],[36,9,48,9],[47,0,47,6],[48,0,51,6],[51,9,63,9]]}
[{"$f":"+'Cover Page'!$B$29","v":"Annual Performance Report 2022"},null,null,null,{"$f":"+'Cover Page'!$B$33","v":"Kemsley Generating Station"}]
[]
["Monitoring of Total organic carbon emissions",null,null,"Whole Installation",null,null,"See  Notes in Cell Q3",null,null,{"$f":"+A3","v":"Monitoring of Total organic carbon emissions"},null,null,null,"Per Combustion Line",null,null,"Notes:"]
[null,null,null,null,null,null,null,null,null,null,null,null,null,null,null,null,"User to add logic to complete Whole installation, Table A5:G18. From the data in Per Combustion Line, Table J6:O79, subject to No. of lines installed"]
["mg/Nm3","1/2 Hourly Reference Periods",null,null,"Daily Reference Periods"]
[{"$f":"+'Cover Page'!C39","v":2022},"1/2 hourly TOC ELV","Monthly 1/2 hourly mean","Highest 1/2 hourly maximum","Daily TOC ELV","Monthly daily mean","Highest daily maximum",null,null,{"$f":"+A6","v":2022},"mg/Nm3","Monthly 1/2 hourly mean","Monthly 1/2 hourly maximum","Monthly daily mean","Monthly daily maximum"]
["Jan",20,0.15,1.86,10,0.15,0.35,null,null,"A1","Jan",0.15,1.35,0.14000000000000001,0.28999999999999998]
["Feb",20,0.11,2.2599999999999998,10,0.1,0.32,null,null,null,"Feb",0.18,2.2000000000000002,0.17,0.32]
["Mar",20,0.13,4.49,10,0.12,0.33,null,null,null,"Mar",0.23,1.22,0.23,0.33,null,"Whole Installation table A5:G18:"]
["Apr",20,0.14000000000000001,5.81,10,0.14000000000000001,0.32,null,null,null,"Apr",0.21,1.17,0.2,0.32,null,"Mean: for 1/2 hourly and daily periods calculate mean of values across all operational combustion lines for the month"]
["May",20,0.14000000000000001,3.01,10,0.14000000000000001,0.26,null,null,null,"May",0.19,3.01,0.19,0.24]
["Jun",20,0.15,3.76,10,0.15,0.28999999999999998,null,null,null,"Jun",0.19,1.48,0.19,0.25]
["Jul",20,0.16,3.15,10,0.16,0.28000000000000003,null,null,null,"Jul",0.21,3.15,0.21,0.28000000000000003,null,"Maximum: for 1/2 hourly and daily periods use the highest value across all operational combustion lines for the month"]
["Aug",20,0.19,3.51,10,0.19,0.35,null,null,null,"Aug",0.21,2.25,0.21,0.28000000000000003]
["Sep",20,0.19,3.33,10,0.17,0.33,null,null,null,"Sep",0.26,3.01,0.23,0.33]
["Oct",20,0.17,2.23,10,0.17,0.32,null,null,null,"Oct",0.22,2.23,0.22,0.32]
["Nov",20,0.16,1.79,10,0.16,0.28999999999999998,null,null,null,"Nov",0.21,1.79,0.2,0.28999999999999998]
["Dec",20,0.17,2.64,10,0.16,0.34,null,null,null,"Dec",0.23,2.64,0.21,0.34]
[null,null,null,null,null,null,null,null,null,null,"Annual",{"$f":"AVERAGE(L7:L18)","v":0.20749999999999999},{"$f":"MAX(M7:M18)","v":3.15},{"$f":"AVERAGE(N7:N18)","v":0.19999999999999998},{"$f":"MAX(O7:O18)","v":0.34}]
[]
[null,null,null,null,null,null,null,null,null,{"$f":"+A6","v":2022},"mg/Nm3","Monthly 1/2 hourly mean","Monthly 1/2 hourly maximum","Monthly daily mean","Monthly daily maximum"]
[null,null,null,null,null,null,null,null,null,"A2","Jan",0.15,1.86,0.15,0.35]
[null,null,null,null,null,null,null,null,null,null,"Feb",0.05,2.2599999999999998,0.05,0.25]
[null,null,null,null,null,null,null,null,null,null,"Mar",0.09,4.49,0.09,0.23]
[null,null,null,null,null,null,null,null,null,null,"Apr",0.09,5.81,0.09,0.18]
[null,null,null,null,null,null,null,null,null,null,"May",0.09,2.57,0.09,0.26]
[null,null,null,null,null,null,null,null,null,null,"Jun",0.12,3.76,0.12,0.28999999999999998]
[null,null,null,null,null,null,null,null,null,null,"Jul",0.12,2.02,0.12,0.23]
[null,null,null,null,null,null,null,null,null,null,"Aug",0.17,3.51,0.16,0.35]
[null,null,null,null,null,null,null,null,null,null,"Sep",0.14000000000000001,3.33,0.14000000000000001,0.25]
[null,null,null,null,null,null,null,null,null,null,"Oct",0.11,1.84,0.11,0.17]
[null,null,null,null,null,null,null,null,null,null,"Nov",0.11,1.35,0.11,0.19]
[null,null,null,null,null,null,null,null,null,null,"Dec",0.1,2.19,0.1,0.16]
[null,null,null,null,null,null,null,null,null,null,"Annual",{"$f":"AVERAGE(L22:L33)","v":0.11166666666666669},{"$f":"MAX(M22:M33)","v":5.81},{"$f":"AVERAGE(N22:N33)","v":0.11083333333333335},{"$f":"MAX(O22:O33)","v":0.35}]
[]
[null,null,null,null,null,null,null,null,null,{"$f":"+A6","v":2022},"mg/Nm3","Monthly 1/2 hourly mean","Monthly 1/2 hourly maximum","Monthly daily mean","Monthly daily maximum"]
[null,null,null,null,null,null,null,null,null,"A3","Jan"]
[null,null,null,null,null,null,null,null,null,null,"Feb"]
[null,null,null,null,null,null,null,null,null,null,"Mar"]
[null,null,null,null,null,null,null,null,null,null,"Apr"]
[null,null,null,null,null,null,null,null,null,null,"May"]
[null,null,null,null,null,null,null,null,null,null,"Jun"]
[null,null,null,null,null,null,null,null,null,null,"Jul"]
[null,null,null,null,null,null,null,null,null,null,"Aug"]
[null,null,null,null,null,null,null,null,null,null,"Sep"]
[null,null,null,null,null,null,null,null,null,null,"Oct"]
[null,null,null,null,null,null,null,null,null,null,"Nov"]
["Comments :",null,null,null,null,null,null,null,null,null,"Dec"]
["K3 facility operates 2 lines (2 boilers and 2 emission points) with 1 common turbine.",null,null,null,null,null,null,null,null,null,"Annual",{"$f":"AVERAGE(L37:L48)","v":{"$error":"#DIV/0!"}},{"$f":"MAX(M37:M48)","v":0},{"$f":"AVERAGE(N37:N48)","v":{"$error":"#DIV/0!"}},{"$f":"MAX(O37:O48)","v":0}]
[]
[null,null,null,null,null,null,null,null,null,{"$f":"+A6","v":2022},"mg/Nm3","Monthly 1/2 hourly mean","Monthly 1/2 hourly maximum","Monthly daily mean","Monthly daily maximum"]
[null,null,null,null,null,null,null,null,null,"A4","Jan"]
[null,null,null,null,null,null,null,null,null,null,"Feb"]
[null,null,null,null,null,null,null,null,null,null,"Mar"]
[null,null,null,null,null,null,null,null,null,null,"Apr"]
[null,null,null,null,null,null,null,null,null,null,"May"]
[null,null,null,null,null,null,null,null,null,null,"Jun"]
[null,null,null,null,null,null,null,null,null,null,"Jul"]
[null,null,null,null,null,null,null,null,null,null,"Aug"]
[null,null,null,null,null,null,null,null,null,null,"Sep"]
[null,null,null,null,null,null,null,null,null,null,"Oct"]
[null,null,null,null,null,null,null,null,null,null,"Nov"]
[null,null,null,null,null,null,null,null,null,null,"Dec"]
[null,null,null,null,null,null,null,null,null,null,"Annual",{"$f":"AVERAGE(L52:L63)","v":{"$error":"#DIV/0!"}},{"$f":"MAX(M52:M63)","v":0},{"$f":"AVERAGE(N52:N63)","v":{"$error":"#DIV/0!"}},{"$f":"MAX(O52:O63)","v":0}]
[]
[null,null,null,null,null,null,null,null,null,{"$f":"+A6","v":2022},"mg/Nm3","Monthly 1/2 hourly mean","Monthly 1/2 hourly maximum","Monthly daily mean","Monthly daily maximum"]
[null,null,null,null,null,null,null,null,null,"A5","Jan"]
[null,null,null,null,null,null,null,null,null,null,"Feb"]
[null,null,null,null,null,null,null,null,null,null,"Mar"]
[null,null,null,null,null,null,null,null,null,null,"Apr"]
[null,null,null,null,null,null,null,null,null,null,"May"]
[null,null,null,null,null,null,null,null,null,null,"Jun"]
[null,null,null,null,null,null,null,null,null,null,"Jul"]
[null,null,null,null,null,null,null,null,null,null,"Aug"]
[null,null,null,null,null,null,null,null,null,null,"Sep"]
[null,null,null,null,null,null,null,null,null,null,"Oct"]
[null,null,null,null,null,null,null,null,null,null,"Nov"]
[null,null,null,null,null,null,null,null,null,null,"Dec"]
[null,null,null,null,null,null,null,null,null,null,"Annual",{"$f":"AVERAGE(L67:L78)","v":{"$error":"#DIV/0!"}},{"$f":"MAX(M67:M78)","v":0},{"$f":"AVERAGE(N67:N78)","v":{"$error":"#DIV/0!"}},{"$f":"MAX(O67:O78)","v":0}]

{"sheet":"Particulates","index":19,"n_rows":79,"n_cols":17,"rows_kept":79,"cut":false,"hidden":false,"merged":[[3,16,7,18],[9,16,11,18],[12,16,15,18],[66,9,78,9],[4,1,4,3],[4,4,4,6],[4,9,4,14],[6,9,18,9],[21,9,33,9],[36,9,48,9],[47,0,47,6],[48,0,51,6],[51,9,63,9]]}
[{"$f":"+'Cover Page'!$B$29","v":"Annual Performance Report 2022"},null,null,null,{"$f":"+'Cover Page'!$B$33","v":"Kemsley Generating Station"}]
[]
["Monitoring of Particulate matter emissions",null,null,"Whole Installation",null,null,"See  Notes in Cell Q3",null,null,{"$f":"+A3","v":"Monitoring of Particulate matter emissions"},null,null,null,"Per Combustion Line",null,null,"Notes:"]
[null,null,null,null,null,null,null,null,null,null,null,null,null,null,null,null,"User to add logic to complete Whole installation, Table A5:G18. From the data in Per Combustion Line, Table J6:O79, subject to No. of lines installed"]
["mg/Nm3","1/2 Hourly Reference Periods",null,null,"Daily Reference Periods"]
[{"$f":"+'Cover Page'!C39","v":2022},"1/2 hourly PM ELV","Monthly 1/2 hourly mean","Highest 1/2 hourly maximum","Daily PM ELV","Monthly daily mean","Highest daily maximum",null,null,{"$f":"+A6","v":2022},"mg/Nm3","Monthly 1/2 hourly mean","Monthly 1/2 hourly maximum","Monthly daily mean","Monthly daily maximum"]
["Jan",30,0.15,0.44,10,0.15,0.28999999999999998,null,null,"A1","Jan",0.08,0.44,0.08,0.12]
["Feb",30,0.19,0.43,10,0.19,0.31,null,null,null,"Feb",0.08,0.09,0.08,0.08]
["Mar",30,0.31,2.2200000000000002,10,0.31,0.84,null,null,null,"Mar",0.08,0.1,0.08,0.08,null,"Whole Installation table A5:G18:"]
["Apr",30,0.18,0.36,10,0.18,0.28000000000000003,null,null,null,"Apr",0.08,0.12,0.08,0.08,null,"Mean: for 1/2 hourly and daily periods calculate mean of values across all operational combustion lines for the month"]
["May",30,0.16,0.31,10,0.17,0.27,null,null,null,"May",0.08,0.09,0.08,0.08]
["Jun",30,0.17,0.32,10,0.17,0.27,null,null,null,"Jun",0.08,0.28000000000000003,0.08,0.09]
["Jul",30,0.22,1.58,10,0.22,0.53,null,null,null,"Jul",0.08,0.1,0.08,0.08,null,"Maximum: for 1/2 hourly and daily periods use the highest value across all operational combustion lines for the month"]
["Aug",30,0.2,1.58,10,0.2,0.53,null,null,null,"Aug",0.08,0.22,0.08,0.14000000000000001]
["Sep",30,0.26,2.25,10,0.26,0.66,null,null,null,"Sep",0.08,0.12,0.08,0.09]
["Oct",30,0.26,2.0499999999999998,10,0.26,0.78,null,null,null,"Oct",7.0000000000000007E-2,0.09,7.0000000000000007E-2,0.08]
["Nov",30,0.23,3.91,10,0.23,1.18,null,null,null,"Nov",0.06,0.19,7.0000000000000007E-2,0.09]
["Dec",30,7.0000000000000007E-2,0.28000000000000003,10,7.0000000000000007E-2,0.09,null,null,null,"Dec",7.0000000000000007E-2,0.28000000000000003,7.0000000000000007E-2,7.0000000000000007E-2]
[null,null,null,null,null,null,null,null,null,null,"Annual",{"$f":"AVERAGE(L7:L18)","v":7.6666666666666675E-2},{"$f":"MAX(M7:M18)","v":0.44},{"$f":"AVERAGE(N7:N18)","v":7.7500000000000013E-2},{"$f":"MAX(O7:O18)","v":0.14000000000000001}]
[]
[null,null,null,null,null,null,null,null,null,{"$f":"+A6","v":2022},"mg/Nm3","Monthly 1/2 hourly mean","Monthly 1/2 hourly maximum","Monthly daily mean","Monthly daily maximum"]
[null,null,null,null,null,null,null,null,null,"A2","Jan",0.28000000000000003,0.34,0.28000000000000003,0.28999999999999998]
[null,null,null,null,null,null,null,null,null,null,"Feb",0.27,0.43,0.27,0.31]
[null,null,null,null,null,null,null,null,null,null,"Mar",0.4,2.2200000000000002,0.4,0.84]
[null,null,null,null,null,null,null,null,null,null,"Apr",0.26,0.36,0.26,0.28000000000000003]
[null,null,null,null,null,null,null,null,null,null,"May",0.25,0.31,0.25,0.27]
[null,null,null,null,null,null,null,null,null,null,"Jun",0.25,0.32,0.25,0.27]
[null,null,null,null,null,null,null,null,null,null,"Jul",0.36,1.58,0.36,0.53]
[null,null,null,null,null,null,null,null,null,null,"Aug",0.34,1.58,0.34,0.53]
[null,null,null,null,null,null,null,null,null,null,"Sep",0.38,2.25,0.38,0.66]
[null,null,null,null,null,null,null,null,null,null,"Oct",0.45,2.0499999999999998,0.45,0.78]
[null,null,null,null,null,null,null,null,null,null,"Nov",0.43,3.91,0.44,1.18]
[null,null,null,null,null,null,null,null,null,null,"Dec",0.08,0.15,0.08,0.09]
[null,null,null,null,null,null,null,null,null,null,"Annual",{"$f":"AVERAGE(L22:L33)","v":0.3125},{"$f":"MAX(M22:M33)","v":3.91},{"$f":"AVERAGE(N22:N33)","v":0.3133333333333333},{"$f":"MAX(O22:O33)","v":1.18}]
[]
[null,null,null,null,null,null,null,null,null,{"$f":"+A6","v":2022},"mg/Nm3","Monthly 1/2 hourly mean","Monthly 1/2 hourly maximum","Monthly daily mean","Monthly daily maximum"]
[null,null,null,null,null,null,null,null,null,"A3","Jan"]
[null,null,null,null,null,null,null,null,null,null,"Feb"]
[null,null,null,null,null,null,null,null,null,null,"Mar"]
[null,null,null,null,null,null,null,null,null,null,"Apr"]
[null,null,null,null,null,null,null,null,null,null,"May"]
[null,null,null,null,null,null,null,null,null,null,"Jun"]
[null,null,null,null,null,null,null,null,null,null,"Jul"]
[null,null,null,null,null,null,null,null,null,null,"Aug"]
[null,null,null,null,null,null,null,null,null,null,"Sep"]
[null,null,null,null,null,null,null,null,null,null,"Oct"]
[null,null,null,null,null,null,null,null,null,null,"Nov"]
["Comments :",null,null,null,null,null,null,null,null,null,"Dec"]
["K3 facility operates 2 lines (2 boilers and 2 emission points) with 1 common turbine.",null,null,null,null,null,null,null,null,null,"Annual",{"$f":"AVERAGE(L37:L48)","v":{"$error":"#DIV/0!"}},{"$f":"MAX(M37:M48)","v":0},{"$f":"AVERAGE(N37:N48)","v":{"$error":"#DIV/0!"}},{"$f":"MAX(O37:O48)","v":0}]
[]
[null,null,null,null,null,null,null,null,null,{"$f":"+A6","v":2022},"mg/Nm3","Monthly 1/2 hourly mean","Monthly 1/2 hourly maximum","Monthly daily mean","Monthly daily maximum"]
[null,null,null,null,null,null,null,null,null,"A4","Jan"]
[null,null,null,null,null,null,null,null,null,null,"Feb"]
[null,null,null,null,null,null,null,null,null,null,"Mar"]
[null,null,null,null,null,null,null,null,null,null,"Apr"]
[null,null,null,null,null,null,null,null,null,null,"May"]
[null,null,null,null,null,null,null,null,null,null,"Jun"]
[null,null,null,null,null,null,null,null,null,null,"Jul"]
[null,null,null,null,null,null,null,null,null,null,"Aug"]
[null,null,null,null,null,null,null,null,null,null,"Sep"]
[null,null,null,null,null,null,null,null,null,null,"Oct"]
[null,null,null,null,null,null,null,null,null,null,"Nov"]
[null,null,null,null,null,null,null,null,null,null,"Dec"]
[null,null,null,null,null,null,null,null,null,null,"Annual",{"$f":"AVERAGE(L52:L63)","v":{"$error":"#DIV/0!"}},{"$f":"MAX(M52:M63)","v":0},{"$f":"AVERAGE(N52:N63)","v":{"$error":"#DIV/0!"}},{"$f":"MAX(O52:O63)","v":0}]
[]
[null,null,null,null,null,null,null,null,null,{"$f":"+A6","v":2022},"mg/Nm3","Monthly 1/2 hourly mean","Monthly 1/2 hourly maximum","Monthly daily mean","Monthly daily maximum"]
[null,null,null,null,null,null,null,null,null,"A5","Jan"]
[null,null,null,null,null,null,null,null,null,null,"Feb"]
[null,null,null,null,null,null,null,null,null,null,"Mar"]
[null,null,null,null,null,null,null,null,null,null,"Apr"]
[null,null,null,null,null,null,null,null,null,null,"May"]
[null,null,null,null,null,null,null,null,null,null,"Jun"]
[null,null,null,null,null,null,null,null,null,null,"Jul"]
[null,null,null,null,null,null,null,null,null,null,"Aug"]
[null,null,null,null,null,null,null,null,null,null,"Sep"]
[null,null,null,null,null,null,null,null,null,null,"Oct"]
[null,null,null,null,null,null,null,null,null,null,"Nov"]
[null,null,null,null,null,null,null,null,null,null,"Dec"]
[null,null,null,null,null,null,null,null,null,null,"Annual",{"$f":"AVERAGE(L67:L78)","v":{"$error":"#DIV/0!"}},{"$f":"MAX(M67:M78)","v":0},{"$f":"AVERAGE(N67:N78)","v":{"$error":"#DIV/0!"}},{"$f":"MAX(O67:O78)","v":0}]

{"sheet":"CO 0.5hourly","index":20,"n_rows":79,"n_cols":17,"rows_kept":79,"cut":false,"hidden":false,"merged":[[3,16,7,18],[9,16,11,18],[12,16,15,18],[66,9,78,9],[4,1,4,3],[4,4,4,6],[4,9,4,14],[6,9,18,9],[21,9,33,9],[36,9,48,9],[47,0,47,6],[48,0,51,6],[51,9,63,9]]}
[{"$f":"+'Cover Page'!$B$29","v":"Annual Performance Report 2022"},null,null,null,{"$f":"+'Cover Page'!$B$33","v":"Kemsley Generating Station"}]
[]
["Monitoring of Carbon Monoxide (half hourly)",null,null,"Whole Installation",null,null,"See  Notes in Cell Q3",null,"*",{"$f":"+A3","v":"Monitoring of Carbon Monoxide (half hourly)"},null,null,null,"Per Combustion Line",null,null,"Notes:"]
[null,null,null,null,null,null,null,null,null,null,null,null,null,null,null,null,"User to add logic to complete Whole installation, Table A5:G18. From the data in Per Combustion Line, Table J6:O79, subject to No. of lines installed"]
["mg/Nm3","1/2 Hourly Reference Periods*",null,null,"Daily Reference Periods"]
[{"$f":"+'Cover Page'!C39","v":2022},"1/2 hourly CO ELV","Monthly 1/2 hourly mean","Highest 1/2 hourly maximum","Daily CO ELV","Monthly daily mean","Highest daily maximum",null,null,{"$f":"+A6","v":2022},"mg/Nm3","Monthly 1/2 hourly mean","Monthly 1/2 hourly maximum","Monthly daily mean","Monthly daily maximum"]
["Jan",100,"N/A","N/A",50,3.13,5.6,null,null,"A1","Jan","N/A","N/A",3.33,4.12]
["Feb",100,"N/A","N/A",50,3.69,6.42,null,null,null,"Feb","N/A","N/A",3.99,6.15]
["Mar",100,"N/A","N/A",50,3.47,7.15,null,null,null,"Mar","N/A","N/A",3.36,3.95,null,"Whole Installation table A5:G18:"]
["Apr",100,"N/A","N/A",50,3.54,14.56,null,null,null,"Apr","N/A","N/A",3.19,4.01,null,"Mean: for 1/2 hourly and daily periods calculate mean of values across all operational combustion lines for the month"]
["May",100,"N/A","N/A",50,3.5,7.25,null,null,null,"May","N/A","N/A",3.55,7.25]
["Jun",100,"N/A","N/A",50,4.24,18.649999999999999,null,null,null,"Jun","N/A","N/A",3.36,6.92]
["Jul",100,"N/A","N/A",50,3.85,6.4,null,null,null,"Jul","N/A","N/A",3.66,5.96,null,"Maximum: for 1/2 hourly and daily periods use the highest value across all operational combustion lines for the month"]
["Aug",100,"N/A","N/A",50,5.22,11.64,null,null,null,"Aug","N/A","N/A",5.04,10.54]
["Sep",100,"N/A","N/A",50,4.84,7.72,null,null,null,"Sep","N/A","N/A",5.42,6.68]
["Oct",100,"N/A","N/A",50,5.01,7.65,null,null,null,"Oct","N/A","N/A",5.21,7.51]
["Nov",100,"N/A","N/A",50,4.97,7.17,null,null,null,"Nov","N/A","N/A",5.27,7.17]
["Dec",100,"N/A","N/A",50,4.5,6.81,null,null,null,"Dec","N/A","N/A",5.28,6.81]
[null,null,null,null,null,null,null,null,null,null,"Annual",{"$f":"AVERAGE(L7:L18)","v":{"$error":"#DIV/0!"}},{"$f":"MAX(M7:M18)","v":0},{"$f":"AVERAGE(N7:N18)","v":4.2216666666666667},{"$f":"MAX(O7:O18)","v":10.54}]
[]
[null,null,null,null,null,null,null,null,null,{"$f":"+A6","v":2022},"mg/Nm3","Monthly 1/2 hourly mean","Monthly 1/2 hourly maximum","Monthly daily mean","Monthly daily maximum"]
[null,null,null,null,null,null,null,null,null,"A2","Jan","N/A","N/A",2.79,5.6]
[null,null,null,null,null,null,null,null,null,null,"Feb","N/A","N/A",3.47,6.42]
[null,null,null,null,null,null,null,null,null,null,"Mar","N/A","N/A",3.52,7.15]
[null,null,null,null,null,null,null,null,null,null,"Apr","N/A","N/A",3.82,14.56]
[null,null,null,null,null,null,null,null,null,null,"May","N/A","N/A",3.45,7.22]
[null,null,null,null,null,null,null,null,null,null,"Jun","N/A","N/A",5.1100000000000003,18.649999999999999]
[null,null,null,null,null,null,null,null,null,null,"Jul","N/A","N/A",4.05,6.4]
[null,null,null,null,null,null,null,null,null,null,"Aug","N/A","N/A",5.44,11.64]
[null,null,null,null,null,null,null,null,null,null,"Sep","N/A","N/A",4.47,7.72]
[null,null,null,null,null,null,null,null,null,null,"Oct","N/A","N/A",4.8,7.65]
[null,null,null,null,null,null,null,null,null,null,"Nov","N/A","N/A",4.5999999999999996,6.3]
[null,null,null,null,null,null,null,null,null,null,"Dec","N/A","N/A",3.53,6.09]
[null,null,null,null,null,null,null,null,null,null,"Annual",{"$f":"AVERAGE(L22:L33)","v":{"$error":"#DIV/0!"}},{"$f":"MAX(M22:M33)","v":0},{"$f":"AVERAGE(N22:N33)","v":4.0875000000000004},{"$f":"MAX(O22:O33)","v":18.649999999999999}]
[]
[null,null,null,null,null,null,null,null,null,{"$f":"+A6","v":2022},"mg/Nm3","Monthly 1/2 hourly mean","Monthly 1/2 hourly maximum","Monthly daily mean","Monthly daily maximum"]
[null,null,null,null,null,null,null,null,null,"A3","Jan"]
[null,null,null,null,null,null,null,null,null,null,"Feb"]
[null,null,null,null,null,null,null,null,null,null,"Mar"]
[null,null,null,null,null,null,null,null,null,null,"Apr"]
[null,null,null,null,null,null,null,null,null,null,"May"]
[null,null,null,null,null,null,null,null,null,null,"Jun"]
[null,null,null,null,null,null,null,null,null,null,"Jul"]
[null,null,null,null,null,null,null,null,null,null,"Aug"]
[null,null,null,null,null,null,null,null,null,null,"Sep"]
[null,null,null,null,null,null,null,null,null,null,"Oct"]
[null,null,null,null,null,null,null,null,null,null,"Nov"]
["Comments :",null,null,null,null,null,null,null,null,null,"Dec"]
["K3 facility operates 2 lines (2 boilers and 2 emission points) with 1 common turbine.\n*CO permit complince at this facility is based on 95%ile 10-min avgerage not half hourly averages.",null,null,null,null,null,null,null,null,null,"Annual",{"$f":"AVERAGE(L37:L48)","v":{"$error":"#DIV/0!"}},{"$f":"MAX(M37:M48)","v":0},{"$f":"AVERAGE(N37:N48)","v":{"$error":"#DIV/0!"}},{"$f":"MAX(O37:O48)","v":0}]
[]
[null,null,null,null,null,null,null,null,null,{"$f":"+A6","v":2022},"mg/Nm3","Monthly 1/2 hourly mean","Monthly 1/2 hourly maximum","Monthly daily mean","Monthly daily maximum"]
[null,null,null,null,null,null,null,null,null,"A4","Jan"]
[null,null,null,null,null,null,null,null,null,null,"Feb"]
[null,null,null,null,null,null,null,null,null,null,"Mar"]
[null,null,null,null,null,null,null,null,null,null,"Apr"]
[null,null,null,null,null,null,null,null,null,null,"May"]
[null,null,null,null,null,null,null,null,null,null,"Jun"]
[null,null,null,null,null,null,null,null,null,null,"Jul"]
[null,null,null,null,null,null,null,null,null,null,"Aug"]
[null,null,null,null,null,null,null,null,null,null,"Sep"]
[null,null,null,null,null,null,null,null,null,null,"Oct"]
[null,null,null,null,null,null,null,null,null,null,"Nov"]
[null,null,null,null,null,null,null,null,null,null,"Dec"]
[null,null,null,null,null,null,null,null,null,null,"Annual",{"$f":"AVERAGE(L52:L63)","v":{"$error":"#DIV/0!"}},{"$f":"MAX(M52:M63)","v":0},{"$f":"AVERAGE(N52:N63)","v":{"$error":"#DIV/0!"}},{"$f":"MAX(O52:O63)","v":0}]
[]
[null,null,null,null,null,null,null,null,null,{"$f":"+A6","v":2022},"mg/Nm3","Monthly 1/2 hourly mean","Monthly 1/2 hourly maximum","Monthly daily mean","Monthly daily maximum"]
[null,null,null,null,null,null,null,null,null,"A5","Jan"]
[null,null,null,null,null,null,null,null,null,null,"Feb"]
[null,null,null,null,null,null,null,null,null,null,"Mar"]
[null,null,null,null,null,null,null,null,null,null,"Apr"]
[null,null,null,null,null,null,null,null,null,null,"May"]
[null,null,null,null,null,null,null,null,null,null,"Jun"]
[null,null,null,null,null,null,null,null,null,null,"Jul"]
[null,null,null,null,null,null,null,null,null,null,"Aug"]
[null,null,null,null,null,null,null,null,null,null,"Sep"]
[null,null,null,null,null,null,null,null,null,null,"Oct"]
[null,null,null,null,null,null,null,null,null,null,"Nov"]
[null,null,null,null,null,null,null,null,null,null,"Dec"]
[null,null,null,null,null,null,null,null,null,null,"Annual",{"$f":"AVERAGE(L67:L78)","v":{"$error":"#DIV/0!"}},{"$f":"MAX(M67:M78)","v":0},{"$f":"AVERAGE(N67:N78)","v":{"$error":"#DIV/0!"}},{"$f":"MAX(O67:O78)","v":0}]

{"sheet":"CO 95% 10 min","index":21,"n_rows":79,"n_cols":19,"rows_kept":79,"cut":false,"hidden":false,"merged":[[3,18,7,20],[9,18,11,20],[12,18,15,20],[66,10,78,10],[4,1,4,4],[4,5,4,7],[4,10,4,16],[6,10,18,10],[21,10,33,10],[36,10,48,10],[47,0,47,7],[48,0,51,7],[51,10,63,10]]}
[{"$f":"+'Cover Page'!$B$29","v":"Annual Performance Report 2022"},null,null,null,{"$f":"+'Cover Page'!$B$33","v":"Kemsley Generating Station"}]
[]
["Monitoring of Carbon Monoxide (10-minute avg)",null,null,null,"Whole Installation",null,null,"See  Notes in Cell S3",null,{"$f":"+A3","v":"Monitoring of Carbon Monoxide (10-minute avg)"},null,null,null,null,"Per Combustion Line",null,"Notes:",null,"Notes:"]
[null,null,null,null,null,null,null,null,null,null,null,null,null,null,null,null,null,null,"User to add logic to complete Whole installation, Table A5:H18. From the data in Per Combustion Line, Table K6:Q79, subject to No. of lines installed"]
["mg/Nm3","10-minute Reference Periods",null,null,null,"Daily Reference Periods"]
[{"$f":"+'Cover Page'!C39","v":2022},"95%ile 10-min avg CO ELV","95%ile 10-min avg maximum","Monthly CO 10-min avg mean","10-min avg maximum","Daily CO ELV","Monthly daily mean","Highest daily maximum",null,null,{"$f":"+A6","v":2022},"mg/Nm3","95%ile 10-min avg maximum","Monthly CO 10-min avg mean","10-min avg maximum","Monthly daily mean","Monthly daily maximum"]
["Jan",150,7.88,3.16,254.17,50,3.14,5.62,null,null,"A1","Jan",7.88,3.37,138.97,3.33,4.12]
["Feb",{"$f":"+B7","v":150},13.49,3.64,482.39,50,3.64,6.45,null,null,null,"Feb",11.67,3.85,240.53,3.86,6.15]
["Mar",{"$f":"+B8","v":150},12.25,3.48,651.44000000000005,50,3.48,7.23,null,null,null,"Mar",7.26,3.38,135.49,3.36,3.95,null,"Whole Installation table A5:H18:"]
["Apr",150,40.14,3.55,1105.53,50,3.54,14.56,null,null,null,"Apr",5.24,3.22,168.26,3.19,4.01,null,"Mean: for 10-min and daily periods use average of all operational combustion lines."]
["May",150,7.7,3.49,605.05999999999995,50,3.5,7.25,null,null,null,"May",6.97,3.54,605.05999999999995,3.55,7.25]
["Jun",150,47.26,4.24,890.64,50,4.24,18.649999999999999,null,null,null,"Jun",8.65,3.36,322.33,3.36,6.92]
["Jul",150,18.7,3.85,316.11,50,3.85,6.4,null,null,null,"Jul",8.43,3.66,316.11,3.65,5.96,null,"Maximum: for 10-min and daily periods use the highest of all operational combustion lines in any month."]
["Aug",150,17.13,5.35,930.98,50,5.22,11.64,null,null,null,"Aug",13.27,5.04,437.22,5.04,10.54]
["Sep",150,23.26,4.8600000000000003,401.42,50,4.84,7.72,null,null,null,"Sep",10.34,5.44,199.88,5.42,6.68]
["Oct",150,11.87,4.99,269.8,50,4.99,7.65,null,null,null,"Oct",11.87,5.21,269.8,5.21,7.51]
["Nov",150,19.8,4.99,240.39,50,4.97,7.17,null,null,null,"Nov",9.4700000000000006,5.32,240.39,5.27,7.17]
["Dec",150,20.43,4.5,211.44,50,4.51,7.39,null,null,null,"Dec",20.43,5.23,185.91,5.31,7.39]
[null,null,null,null,null,null,null,null,null,null,null,"Annual",{"$f":"AVERAGE(M7:M18)","v":10.123333333333335},null,{"$f":"MAX(O7:O18)","v":605.05999999999995},{"$f":"AVERAGE(P7:P18)","v":4.2124999999999995},{"$f":"MAX(Q7:Q18)","v":10.54}]
[]
[null,null,null,null,null,null,null,null,null,null,{"$f":"+A6","v":2022},"mg/Nm3","95%ile 10-min avg maximum","Monthly CO 10-min avg mean","10-min avg maximum","Monthly daily mean","Monthly daily maximum"]
[null,null,null,null,null,null,null,null,null,null,"A2","Jan",7.85,2.77,254.17,2.79,5.62]
[null,null,null,null,null,null,null,null,null,null,null,"Feb",13.49,3.48,482.39,3.47,6.45]
[null,null,null,null,null,null,null,null,null,null,null,"Mar",12.25,3.53,651.44000000000005,3.52,7.23]
[null,null,null,null,null,null,null,null,null,null,null,"Apr",40.14,3.81,1105.53,3.82,14.56]
[null,null,null,null,null,null,null,null,null,null,null,"May",7.7,3.45,550.07000000000005,3.45,7.22]
[null,null,null,null,null,null,null,null,null,null,null,"Jun",47.26,5.1100000000000003,890.64,5.1100000000000003,18.649999999999999]
[null,null,null,null,null,null,null,null,null,null,null,"Jul",18.7,4.05,201.64,4.05,6.4]
[null,null,null,null,null,null,null,null,null,null,null,"Aug",17.13,5.7,930.98,5.44,11.64]
[null,null,null,null,null,null,null,null,null,null,null,"Sep",23.26,4.47,401.42,4.47,7.72]
[null,null,null,null,null,null,null,null,null,null,null,"Oct",10.96,4.76,230.83,4.76,7.65]
[null,null,null,null,null,null,null,null,null,null,null,"Nov",19.8,4.57,180.25,4.5999999999999996,6.3]
[null,null,null,null,null,null,null,null,null,null,null,"Dec",12.23,3.57,211.44,3.53,6.09]
[null,null,null,null,null,null,null,null,null,null,null,"Annual",{"$f":"AVERAGE(M22:M33)","v":19.230833333333333},null,{"$f":"MAX(O22:O33)","v":1105.53},{"$f":"AVERAGE(P22:P33)","v":4.0841666666666674},{"$f":"MAX(Q22:Q33)","v":18.649999999999999}]
[]
[null,null,null,null,null,null,null,null,null,null,{"$f":"+A6","v":2022},"mg/Nm3","95%ile 10-min avg maximum","Monthly CO 10-min avg mean","10-min avg maximum","Monthly daily mean","Monthly daily maximum"]
[null,null,null,null,null,null,null,null,null,null,"A3","Jan"]
[null,null,null,null,null,null,null,null,null,null,null,"Feb"]
[null,null,null,null,null,null,null,null,null,null,null,"Mar"]
[null,null,null,null,null,null,null,null,null,null,null,"Apr"]
[null,null,null,null,null,null,null,null,null,null,null,"May"]
[null,null,null,null,null,null,null,null,null,null,null,"Jun"]
[null,null,null,null,null,null,null,null,null,null,null,"Jul"]
[null,null,null,null,null,null,null,null,null,null,null,"Aug"]
[null,null,null,null,null,null,null,null,null,null,null,"Sep"]
[null,null,null,null,null,null,null,null,null,null,null,"Oct"]
[null,null,null,null,null,null,null,null,null,null,null,"Nov"]
["Comments :",null,null,null,null,null,null,null,null,null,null,"Dec"]
["K3 facility operates 2 lines (2 boilers and 2 emission points) with 1 common turbine.\nEnvironment Agency explanatory note: The 10-minute average ELV is based on the “95th percentile”. In this case this means that 95% of the 10 minute averages in the relevant 24-hour period (i.e. 137) must be below 150 mg/Nm3, and 5% (i.e. 7) are allowed to be any value above 150 mg/Nm3. Whilst we expect operators to minimise CO emissions at all times, it is perfectly acceptable for the value of the maximum 10-minute average to be above 150 mg/Nm3, provided the 95th percentile ELV has been met for that period. ",null,null,null,null,null,null,null,null,null,null,"Annual",{"$f":"AVERAGE(M37:M48)","v":{"$error":"#DIV/0!"}},null,{"$f":"MAX(O37:O48)","v":0},{"$f":"AVERAGE(P37:P48)","v":{"$error":"#DIV/0!"}},{"$f":"MAX(Q37:Q48)","v":0}]
[]
[null,null,null,null,null,null,null,null,null,null,{"$f":"+A6","v":2022},"mg/Nm3","95%ile 10-min avg maximum","Monthly CO 10-min avg mean","10-min avg maximum","Monthly daily mean","Monthly daily maximum"]
[null,null,null,null,null,null,null,null,null,null,"A4","Jan"]
[null,null,null,null,null,null,null,null,null,null,null,"Feb"]
[null,null,null,null,null,null,null,null,null,null,null,"Mar"]
[null,null,null,null,null,null,null,null,null,null,null,"Apr"]
[null,null,null,null,null,null,null,null,null,null,null,"May"]
[null,null,null,null,null,null,null,null,null,null,null,"Jun"]
[null,null,null,null,null,null,null,null,null,null,null,"Jul"]
[null,null,null,null,null,null,null,null,null,null,null,"Aug"]
[null,null,null,null,null,null,null,null,null,null,null,"Sep"]
[null,null,null,null,null,null,null,null,null,null,null,"Oct"]
[null,null,null,null,null,null,null,null,null,null,null,"Nov"]
[null,null,null,null,null,null,null,null,null,null,null,"Dec"]
[null,null,null,null,null,null,null,null,null,null,null,"Annual",{"$f":"AVERAGE(M52:M63)","v":{"$error":"#DIV/0!"}},null,{"$f":"MAX(O52:O63)","v":0},{"$f":"AVERAGE(P52:P63)","v":{"$error":"#DIV/0!"}},{"$f":"MAX(Q52:Q63)","v":0}]
[]
[null,null,null,null,null,null,null,null,null,null,{"$f":"+A6","v":2022},"mg/Nm3","95%ile 10-min avg maximum","Monthly CO 10-min avg mean","10-min avg maximum","Monthly daily mean","Monthly daily maximum"]
[null,null,null,null,null,null,null,null,null,null,"A5","Jan"]
[null,null,null,null,null,null,null,null,null,null,null,"Feb"]
[null,null,null,null,null,null,null,null,null,null,null,"Mar"]
[null,null,null,null,null,null,null,null,null,null,null,"Apr"]
[null,null,null,null,null,null,null,null,null,null,null,"May"]
[null,null,null,null,null,null,null,null,null,null,null,"Jun"]
[null,null,null,null,null,null,null,null,null,null,null,"Jul"]
[null,null,null,null,null,null,null,null,null,null,null,"Aug"]
[null,null,null,null,null,null,null,null,null,null,null,"Sep"]
[null,null,null,null,null,null,null,null,null,null,null,"Oct"]
[null,null,null,null,null,null,null,null,null,null,null,"Nov"]
[null,null,null,null,null,null,null,null,null,null,null,"Dec"]
[null,null,null,null,null,null,null,null,null,null,null,"Annual",{"$f":"AVERAGE(M67:M78)","v":{"$error":"#DIV/0!"}},null,{"$f":"MAX(O67:O78)","v":0},{"$f":"AVERAGE(P67:P78)","v":{"$error":"#DIV/0!"}},{"$f":"MAX(Q67:Q78)","v":0}]

{"sheet":"NH3","index":22,"n_rows":79,"n_cols":17,"rows_kept":79,"cut":false,"hidden":false,"merged":[[3,16,7,18],[9,16,11,18],[12,16,15,18],[66,9,78,9],[4,1,4,3],[4,4,4,6],[4,9,4,14],[6,9,18,9],[21,9,33,9],[36,9,48,9],[47,0,47,6],[48,0,51,6],[51,9,63,9]]}
[{"$f":"+'Cover Page'!$B$29","v":"Annual Performance Report 2022"},null,null,null,{"$f":"+'Cover Page'!$B$33","v":"Kemsley Generating Station"}]
[]
["Monitoring of Ammnonia emissions ",null,null,"Whole Installation",null,null,"See  Notes in Cell Q3",null,null,{"$f":"+A3","v":"Monitoring of Ammnonia emissions "},null,null,null,"Per Combustion Line",null,null,"Notes:"]
[null,null,null,null,null,null,null,null,null,null,null,null,null,null,null,null,"User to add logic to complete Whole installation, Table A5:G18. From the data in Per Combustion Line, Table J6:O79, subject to No. of lines installed"]
["mg/Nm3","1/2 Hourly Reference Periods",null,null,"Daily Reference Periods"]
[{"$f":"+'Cover Page'!C39","v":2022},"*1/2 hourly NH3 ELV","Monthly 1/2 hourly mean","Highest 1/2 hourly maximum","Daily NH3 ELV","Monthly daily mean","Highest daily maximum",null,null,{"$f":"+A6","v":2022},"mg/Nm3","Monthly 1/2 hourly mean","Monthly 1/2 hourly maximum","Monthly daily mean","Monthly daily maximum"]
["Jan",0,0.42,4.46,10,0.41,0.8,null,null,"A1","Jan",0.52,4.46,0.5,0.8]
["Feb",0,0.45,3,10,0.42,1.36,null,null,null,"Feb",0.64,3,0.61,1.36]
["Mar",0,0.48,2.65,10,0.45,1.37,null,null,null,"Mar",0.99,2.65,0.94,1.37,null,"Whole Installation table A5:G18:"]
["Apr",0,0.74,6.12,10,0.73,2.04,null,null,null,"Apr",1.29,6.12,1.26,2.04,null,"Mean: for 1/2 hourly and daily periods calculate mean of values across all operational combustion lines for the month"]
["May",0,0.43,2.66,10,0.43,1.1399999999999999,null,null,null,"May",0.57999999999999996,2.66,0.56999999999999995,1.1399999999999999]
["Jun",0,0.33,1.26,10,0.33,0.57999999999999996,null,null,null,"Jun",0.39,1.26,0.39,0.57999999999999996]
["Jul",0,0.41,1.98,10,0.41,0.97,null,null,null,"Jul",0.34,1.27,0.34,0.7,null,"Maximum: for 1/2 hourly and daily periods use the highest value across all operational combustion lines for the month"]
["Aug",0,0.4,3.58,10,0.39,0.67,null,null,null,"Aug",0.33,3.58,0.33,0.54]
["Sep",0,0.45,2.5099999999999998,10,0.43,0.86,null,null,null,"Sep",0.56000000000000005,2.5099999999999998,0.54,0.86]
["Oct",0,0.4,2.09,10,0.4,1.08,null,null,null,"Oct",0.45,2.09,0.45,1.08]
["Nov",0,0.65,5.51,10,0.62,1.1499999999999999,null,null,null,"Nov",0.84,5.51,0.79,1.1499999999999999]
["Dec",0,0.42,2.4,10,0.4,1.07,null,null,null,"Dec",0.62,2.4,0.62,1.07]
[null,null,null,null,null,null,null,null,null,null,"Annual",{"$f":"AVERAGE(L7:L18)","v":0.62916666666666676},{"$f":"MAX(M7:M18)","v":6.12},{"$f":"AVERAGE(N7:N18)","v":0.61166666666666669},{"$f":"MAX(O7:O18)","v":2.04}]
[]
[null,null,null,null,null,null,null,null,null,{"$f":"+A6","v":2022},"mg/Nm3","Monthly 1/2 hourly mean","Monthly 1/2 hourly maximum","Monthly daily mean","Monthly daily maximum"]
[null,null,null,null,null,null,null,null,null,"A2","Jan",0.25,0.71,0.24,0.31]
[null,null,null,null,null,null,null,null,null,null,"Feb",0.28999999999999998,1.72,0.28999999999999998,0.94]
[null,null,null,null,null,null,null,null,null,null,"Mar",0.28000000000000003,2.02,0.28000000000000003,0.7]
[null,null,null,null,null,null,null,null,null,null,"Apr",0.31,1.72,0.31,0.66]
[null,null,null,null,null,null,null,null,null,null,"May",0.28999999999999998,1.2,0.28999999999999998,0.53]
[null,null,null,null,null,null,null,null,null,null,"Jun",0.27,0.91,0.27,0.39]
[null,null,null,null,null,null,null,null,null,null,"Jul",0.49,1.98,0.49,0.97]
[null,null,null,null,null,null,null,null,null,null,"Aug",0.48,2.25,0.46,0.67]
[null,null,null,null,null,null,null,null,null,null,"Sep",0.36,1.38,0.36,0.62]
[null,null,null,null,null,null,null,null,null,null,"Oct",0.35,1.51,0.35,0.71]
[null,null,null,null,null,null,null,null,null,null,"Nov",0.41,1.7,0.41,0.64]
[null,null,null,null,null,null,null,null,null,null,"Dec",0.16,2.17,0.13,0.91]
[null,null,null,null,null,null,null,null,null,null,"Annual",{"$f":"AVERAGE(L22:L33)","v":0.32833333333333337},{"$f":"MAX(M22:M33)","v":2.25},{"$f":"AVERAGE(N22:N33)","v":0.32333333333333331},{"$f":"MAX(O22:O33)","v":0.97}]
[]
[null,null,null,null,null,null,null,null,null,{"$f":"+A6","v":2022},"mg/Nm3","Monthly 1/2 hourly mean","Monthly 1/2 hourly maximum","Monthly daily mean","Monthly daily maximum"]
[null,null,null,null,null,null,null,null,null,"A3","Jan"]
[null,null,null,null,null,null,null,null,null,null,"Feb"]
[null,null,null,null,null,null,null,null,null,null,"Mar"]
[null,null,null,null,null,null,null,null,null,null,"Apr"]
[null,null,null,null,null,null,null,null,null,null,"May"]
[null,null,null,null,null,null,null,null,null,null,"Jun"]
[null,null,null,null,null,null,null,null,null,null,"Jul"]
[null,null,null,null,null,null,null,null,null,null,"Aug"]
[null,null,null,null,null,null,null,null,null,null,"Sep"]
[null,null,null,null,null,null,null,null,null,null,"Oct"]
[null,null,null,null,null,null,null,null,null,null,"Nov"]
["Comments :",null,null,null,null,null,null,null,null,null,"Dec"]
["K3 facility operates 2 lines (2 boilers and 2 emission points) with 1 common turbine.\n\n*An indicated ELV value of zero in the table above means that no ammonia limit is set in the permit; not that the ELV is 0. ",null,null,null,null,null,null,null,null,null,"Annual",{"$f":"AVERAGE(L37:L48)","v":{"$error":"#DIV/0!"}},{"$f":"MAX(M37:M48)","v":0},{"$f":"AVERAGE(N37:N48)","v":{"$error":"#DIV/0!"}},{"$f":"MAX(O37:O48)","v":0}]
[]
[null,null,null,null,null,null,null,null,null,{"$f":"+A6","v":2022},"mg/Nm3","Monthly 1/2 hourly mean","Monthly 1/2 hourly maximum","Monthly daily mean","Monthly daily maximum"]
[null,null,null,null,null,null,null,null,null,"A4","Jan"]
[null,null,null,null,null,null,null,null,null,null,"Feb"]
[null,null,null,null,null,null,null,null,null,null,"Mar"]
[null,null,null,null,null,null,null,null,null,null,"Apr"]
[null,null,null,null,null,null,null,null,null,null,"May"]
[null,null,null,null,null,null,null,null,null,null,"Jun"]
[null,null,null,null,null,null,null,null,null,null,"Jul"]
[null,null,null,null,null,null,null,null,null,null,"Aug"]
[null,null,null,null,null,null,null,null,null,null,"Sep"]
[null,null,null,null,null,null,null,null,null,null,"Oct"]
[null,null,null,null,null,null,null,null,null,null,"Nov"]
[null,null,null,null,null,null,null,null,null,null,"Dec"]
[null,null,null,null,null,null,null,null,null,null,"Annual",{"$f":"AVERAGE(L52:L63)","v":{"$error":"#DIV/0!"}},{"$f":"MAX(M52:M63)","v":0},{"$f":"AVERAGE(N52:N63)","v":{"$error":"#DIV/0!"}},{"$f":"MAX(O52:O63)","v":0}]
[]
[null,null,null,null,null,null,null,null,null,{"$f":"+A6","v":2022},"mg/Nm3","Monthly 1/2 hourly mean","Monthly 1/2 hourly maximum","Monthly daily mean","Monthly daily maximum"]
[null,null,null,null,null,null,null,null,null,"A5","Jan"]
[null,null,null,null,null,null,null,null,null,null,"Feb"]
[null,null,null,null,null,null,null,null,null,null,"Mar"]
[null,null,null,null,null,null,null,null,null,null,"Apr"]
[null,null,null,null,null,null,null,null,null,null,"May"]
[null,null,null,null,null,null,null,null,null,null,"Jun"]
[null,null,null,null,null,null,null,null,null,null,"Jul"]
[null,null,null,null,null,null,null,null,null,null,"Aug"]
[null,null,null,null,null,null,null,null,null,null,"Sep"]
[null,null,null,null,null,null,null,null,null,null,"Oct"]
[null,null,null,null,null,null,null,null,null,null,"Nov"]
[null,null,null,null,null,null,null,null,null,null,"Dec"]
[null,null,null,null,null,null,null,null,null,null,"Annual",{"$f":"AVERAGE(L67:L78)","v":{"$error":"#DIV/0!"}},{"$f":"MAX(M67:M78)","v":0},{"$f":"AVERAGE(N67:N78)","v":{"$error":"#DIV/0!"}},{"$f":"MAX(O67:O78)","v":0}]